Workbook

Sheet Data summary
A1: RUN # 2 | B1: Rate classes | C1: Weather station used for normalization | H1: Test Year
A2: 1 | B2: Residential | C2: Ottawa | H2: 2004
A3: 2 | B3: GS>50kW
A4: 3 | B4: Street Lighting
A5: 4 | B5: GS<50kW
A6: 5 | B6: Sentinel Lightig
A7: 6 | B7: USL
A10: Monthly kWh by class (with actual weather) | C10: Jan | D10: Feb | E10: Mar | F10: Apr | G10: May | H10: Jun | I10: Jul | J10: Aug | K10: Sep | L10: Oct | M10: Nov | N10: Dec | O10: TOTAL
A11: 1 | B11: Residential | C11: 10545290.29 | D11: 7809396.4 | E11: 7479034.67 | F11: 5934202.91 | G11: 4710592.18 | H11: 4994678.3 | I11: 5585015.4 | J11: 5340582.45 | K11: 5201411.2 | L11: 4910099.82 | M11: 7012688.53 | N11: 8866653.01 | O11: 78389645.16
A12: 2 | B12: GS>50kW | C12: 7068548.858 | D12: 6421657.837 | E12: 6481599.983 | F12: 5645849.78 | G12: 5760881.298 | H12: 5424029.16 | I12: 5771878.958 | J12: 5726988.704 | K12: 5639671.538 | L12: 5943416.23 | M12: 6244500.674 | N12: 7052651.403 | O12: 73181674.42
A13: 3 | B13: Street Lighting | C13: 268759.6905 | D13: 231064.2225 | E13: 221136.7722 | F13: 187484.0902 | G13: 170437.8261 | H13: 153535.0621 | I13: 164721.8371 | J13: 185242.3608 | K13: 204523.7389 | L13: 238389.1648 | M13: 254100.7558 | N13: 275174.5509 | O13: 2554570.072
A14: 4 | B14: GS<50kW | C14: 5189294.103 | D14: 4458944.979 | E14: 3823690.04 | F14: 3594675.119 | G14: 3382378.068 | H14: 3385734.372 | I14: 3691958.493 | J14: 3521232.542 | K14: 3229575.693 | L14: 3927260.824 | M14: 3916191.85 | N14: 5028039.084 | O14: 47148975.17
A15: 5 | B15: Sentinel Lightig | C15: 28843.14233 | D15: 24835.09761 | E15: 23768.06815 | F15: 20156.05419 | G15: 18326.69678 | H15: 16510.06994 | I15: 17713.01626 | J15: 19928.84886 | K15: 22009.83652 | L15: 25670.6901 | M15: 27339.72614 | N15: 29588.47749 | O15: 274689.7244
A16: 6 | B16: USL | C16: 41089.7655 | D16: 41089.7655 | E16: 38037.53923 | F16: 42377.45173 | G16: 42377.45173 | H16: 42377.45173 | I16: 41693.58673 | J16: 41693.58673 | K16: 41693.58673 | L16: 41693.58673 | M16: 41089.7655 | N16: 41089.7655 | O16: 496303.3034
A19: Monthly kWh by class (with normalized weather) | C19: Jan | D19: Feb | E19: Mar | F19: Apr | G19: May | H19: Jun | I19: Jul | J19: Aug | K19: Sep | L19: Oct | M19: Nov | N19: Dec | O19: TOTAL
A20: 1 | B20: Residential | C20: 9724668.13 | D20: 7889774.523 | E20: 7866703.374 | F20: 5838914.951 | G20: 4810426.512 | H20: 5311054.866 | I20: 5690591.43 | J20: 5523145.856 | K20: 5295338.549 | L20: 5057339.309 | M20: 7135155.494 | N20: 8494293.709 | O20: 78637406.7
A21: 2 | B21: GS>50kW | C21: 6763878.463 | D21: 6451499.627 | E21: 6625528.801 | F21: 5610472.451 | G21: 5800989.404 | H21: 5575953.619 | I21: 5822576.712 | J21: 5814655.901 | K21: 5681491.004 | L21: 5998081.477 | M21: 6289968.687 | N21: 6914406.47 | O21: 73349502.62
A22: 3 | B22: Street Lighting | C22: 268759.6905 | D22: 231064.2225 | E22: 221136.7722 | F22: 187484.0902 | G22: 170437.8261 | H22: 153535.0621 | I22: 164721.8371 | J22: 185242.3608 | K22: 204523.7389 | L22: 238389.1648 | M22: 254100.7558 | N22: 275174.5509 | O22: 2554570.072
A23: 4 | B23: GS<50kW | C23: 4879934.439 | D23: 4489246.071 | E23: 3969834.106 | F23: 3558753.282 | G23: 3422008.958 | H23: 3527600.228 | I23: 3739299.653 | J23: 3603095.477 | K23: 3269539.836 | L23: 3982767.443 | M23: 3962359.673 | N23: 4887666.385 | O23: 47292105.55
A24: 5 | B24: Sentinel Lightig | C24: 28843.14233 | D24: 24835.09761 | E24: 23768.06815 | F24: 20156.05419 | G24: 18326.69678 | H24: 16510.06994 | I24: 17713.01626 | J24: 19928.84886 | K24: 22009.83652 | L24: 25670.6901 | M24: 27339.72614 | N24: 29588.47749 | O24: 274689.7244
A25: 6 | B25: USL | C25: 41089.7655 | D25: 41089.7655 | E25: 38037.53923 | F25: 42377.45173 | G25: 42377.45173 | H25: 42377.45173 | I25: 41693.58673 | J25: 41693.58673 | K25: 41693.58673 | L25: 41693.58673 | M25: 41089.7655 | N25: 41089.7655 | O25: 496303.3034
A28: Residential class information | C28: Equipment saturation
B29: Electric space heating | C29: 0.1691076294
B30: Electric water heating | C30: 0.378746594
B31: Air conditioning | C31: 0.4407394459
B32: Baseload | C32: 1
A35: General service >50kW | C35: 2004 kWh (Actual) | D35: 2004 kWh (Weather Corrected)
B36: Weather sensitive load | C36: 48989006.35 | D36: 49156834.55
B37: Non-weather sensitive load | C37: 24192668.07 | D37: 24192668.07
B38: TOTAL | C38: 73181674.42 | D38: 73349502.62

Sheet Hourly load shapes by class
A1: ALL UNITS IN GWh | E1: 2004 Load Shape | M1: 2021 Load Shape
A2: Year | B2: Month | C2: Day | D2: Hour (EST) | E2: Residential | F2: GS>50kW | G2: Street Lighting | H2: GS<50 | I2: Sentinel Lighting | J2: USL | K2: TOTAL LDC sales | M2: =E2 -> Residential | N2: GS>50kW | O2: Street Lighting | P2: GS<50 | Q2: Sentinel Lighting | R2: USL | S2: =K2 -> TOTAL LDC sales | V2: Residential | W2: GS>50kW | X2: Street Lighting | Y2: GS<50 | Z2: Sentinel Lighting | AA2: USL
A3: 2004 | B3: 1 | C3: 1 | D3: 1 | E3: 0.01056775969 | F3: 0.006678079346 | G3: 0.000593591 | H3: 0.005403784957 | I3: 6.370386e-05 | J3: 5.522817944e-05 | K3: 0.02336214703 | M3: =E3*V$5 -> 0.01079874244 | N3: =F3*W$5 -> 0.006463620345 | O3: =G3*X$5 -> 0.0002511368214 | P3: =H3*Y$5 -> 0.003387369569 | Q3: =I3*Z$5 -> 4.516883421e-05 | R3: 6.753291143e-05 | S3: =SUM(M3:R3) -> 0.02101357092 | U3: 2004 | V3: =SUM(E3:E8786)*1000000 -> 78637406.7 | W3: =SUM(F3:F8786)*1000000 -> 73349502.62 | X3: 2554570.072 | Y3: 47292105.55 | Z3: 274689.7244 | AA3: 496303.3034
A4: 2004 | B4: 1 | C4: 1 | D4: 2 | E4: 0.00994197633 | F4: 0.006547862176 | G4: 0.000593591 | H4: 0.005102109067 | I4: 6.370386e-05 | J4: 5.522817944e-05 | K4: 0.02230447061 | M4: =E4*V$5 -> 0.01015928115 | N4: 0.006337584953 | O4: 0.0002511368214 | P4: 0.003198263648 | Q4: 4.516883421e-05 | R4: 6.753291143e-05 | S4: =SUM(M4:R4) -> 0.02005896831 | U4: 2022 LF | V4: 80356208.53 | W4: 70993965.91 | X4: 1080788.974 | Y4: 29645117.35 | Z4: 194767.0772 | AA4: 606878.7233
A5: 2004 | B5: 1 | C5: 1 | D5: 3 | E5: 0.01005170062 | F5: 0.006377227976 | G5: 0.000593591 | H5: 0.004719674154 | I5: 6.370386e-05 | J5: 5.522817944e-05 | K5: 0.02186112579 | M5: 0.01027140371 | N5: 0.006172430478 | O5: 0.0002511368214 | P5: 0.00295853383 | Q5: 4.516883421e-05 | R5: 6.753291143e-05 | S5: 0.01976620659 | U5: Scaling Factor | V5: =V4/V3 -> 1.021857306 | W5: =W4/W3 -> 0.9678861257 | X5: 0.4230805746 | Y5: 0.6268512895 | Z5: 0.7090439136 | AA5: =AA4/AA3 -> 1.222798074
A6: 2004 | B6: 1 | C6: 1 | D6: 4 | E6: 0.01025849204 | F6: 0.006354847547 | G6: 0.000593591 | H6: 0.004385229417 | I6: 6.370386e-05 | J6: 5.522817944e-05 | K6: 0.02171109204 | M6: 0.01048271503 | N6: 0.006150768771 | O6: 0.0002511368214 | P6: 0.002748886715 | Q6: 4.516883421e-05 | R6: 6.753291143e-05 | S6: 0.01974620908
A7: 2004 | B7: 1 | C7: 1 | D7: 5 | E7: 0.01069931291 | F7: 0.006396826917 | G7: 0.000593591 | H7: 0.004248452922 | I7: 6.370386e-05 | J7: 5.522817944e-05 | K7: 0.02205711578 | M7: 0.01093317106 | N7: 0.006191400021 | O7: 0.0002511368214 | P7: 0.002663148193 | Q7: 4.516883421e-05 | R7: 6.753291143e-05 | S7: 0.02015155784
A8: 2004 | B8: 1 | C8: 1 | D8: 6 | E8: 0.01115980837 | F8: 0.006607013817 | G8: 0.000593591 | H8: 0.004384038901 | I8: 6.370386e-05 | J8: 5.522817944e-05 | K8: 0.02286338413 | M8: 0.01140373172 | N8: 0.006394837005 | O8: 0.0002511368214 | P8: 0.002748140438 | Q8: 4.516883421e-05 | R8: 6.753291143e-05 | S8: 0.02091054773
A9: 2004 | B9: 1 | C9: 1 | D9: 7 | E9: 0.01179883927 | F9: 0.007084455293 | G9: 0.000593591 | H9: 0.004815897939 | I9: 6.370386e-05 | J9: 5.522817944e-05 | K9: 0.02441171554 | M9: 0.0120567301 | N9: 0.006856945986 | O9: 0.0002511368214 | P9: 0.003018851834 | Q9: 4.516883421e-05 | R9: 6.753291143e-05 | S9: 0.02229636649
A10: 2004 | B10: 1 | C10: 1 | D10: 8 | E10: 0.01220809197 | F10: 0.007682753996 | G10: 0.0005441725708 | H10: 0.006169680846 | I10: 5.840030133e-05 | J10: 5.522817944e-05 | K10: 0.02671832787 | M10: 0.01247492797 | N10: 0.007436031 | O10: 0.0002302288439 | P10: 0.003867472394 | Q10: 4.140837821e-05 | R10: 6.753291143e-05 | S10: 0.0241176015
A11: 2004 | B11: 1 | C11: 1 | D11: 9 | E11: 0.01294868935 | F11: 0.008205665258 | G11: 0 | H11: 0.007517315211 | I11: 0 | J11: 5.522817944e-05 | K11: 0.028726898 | M11: 0.01323171281 | N11: 0.007942149556 | O11: 0 | P11: 0.004712238734 | Q11: 0 | R11: 6.753291143e-05 | S11: 0.02595363401
A12: 2004 | B12: 1 | C12: 1 | D12: 10 | E12: 0.01340582219 | F12: 0.008614201319 | G12: 0 | H12: 0.008593987479 | I12: 0 | J12: 5.522817944e-05 | K12: 0.03066923917 | M12: 0.01369883734 | N12: 0.00833756594 | O12: 0 | P12: 0.005387152133 | Q12: 0 | R12: 6.753291143e-05 | S12: 0.02749108833
A13: 2004 | B13: 1 | C13: 1 | D13: 11 | E13: 0.01362581999 | F13: 0.008788116409 | G13: 0 | H13: 0.008725193017 | I13: 0 | J13: 5.522817944e-05 | K13: 0.03119435759 | M13: 0.0139236437 | N13: 0.008505895944 | O13: 0 | P13: 0.005469398494 | Q13: 0 | R13: 6.753291143e-05 | S13: 0.02796647105
A14: 2004 | B14: 1 | C14: 1 | D14: 12 | E14: 0.0131749521 | F14: 0.008928811564 | G14: 0 | H14: 0.009385448819 | I14: 0 | J14: 5.522817944e-05 | K14: 0.03154444067 | M14: 0.01346292106 | N14: 0.008642072831 | O14: 0 | P14: 0.005883280695 | Q14: 0 | R14: 6.753291143e-05 | S14: 0.0280558075
A15: 2004 | B15: 1 | C15: 1 | D15: 13 | E15: 0.01247248554 | F15: 0.008916564593 | G15: 0 | H15: 0.009496646109 | I15: 0 | J15: 5.522817944e-05 | K15: 0.03094092442 | M15: 0.01274510046 | N15: 0.008630219158 | O15: 0 | P15: 0.00595298486 | Q15: 0 | R15: 6.753291143e-05 | S15: 0.02739583739
A16: 2004 | B16: 1 | C16: 1 | D16: 14 | E16: 0.01187994498 | F16: 0.008900758579 | G16: 0 | H16: 0.009552163592 | I16: 0 | J16: 5.522817944e-05 | K16: 0.03038809533 | M16: 0.01213960857 | N16: 0.008614920737 | O16: 0 | P16: 0.005987786065 | Q16: 0 | R16: 6.753291143e-05 | S16: 0.02680984828
A17: 2004 | B17: 1 | C17: 1 | D17: 15 | E17: 0.0125486299 | F17: 0.008739633358 | G17: 0 | H17: 0.008022743001 | I17: 0 | J17: 5.522817944e-05 | K17: 0.02936623444 | M17: 0.01282290914 | N17: 0.008458969871 | O17: 0 | P17: 0.005029066796 | Q17: 0 | R17: 6.753291143e-05 | S17: 0.02637847872
A18: 2004 | B18: 1 | C18: 1 | D18: 16 | E18: 0.0122726641 | F18: 0.008719538741 | G18: 0 | H18: 0.00874863337 | I18: 0 | J18: 5.522817944e-05 | K18: 0.02979606439 | M18: 0.01254091147 | N18: 0.008439520569 | O18: 0 | P18: 0.00548409211 | Q18: 0 | R18: 6.753291143e-05 | S18: 0.02653205706
A19: 2004 | B19: 1 | C19: 1 | D19: 17 | E19: 0.01284303621 | F19: 0.008997225713 | G19: 2.967955e-05 | H19: 0.01045952341 | I19: 3.185193e-06 | J19: 5.522817944e-05 | K19: 0.03238787826 | M19: 0.01312375038 | N19: 0.008708289937 | O19: 1.255684107e-05 | P19: 0.00655656574 | Q19: 2.25844171e-06 | R19: 6.753291143e-05 | S19: 0.02847095425
A20: 2004 | B20: 1 | C20: 1 | D20: 18 | E20: 0.01524732977 | F20: 0.008749230872 | G20: 0.000593591 | H20: 0.009488675186 | I20: 6.370386e-05 | J20: 5.522817944e-05 | K20: 0.03419775887 | M20: 0.01558059532 | N20: 0.008468259171 | O20: 0.0002511368214 | P20: 0.005947988276 | Q20: 4.516883421e-05 | R20: 6.753291143e-05 | S20: 0.03036068133
A21: 2004 | B21: 1 | C21: 1 | D21: 19 | E21: 0.01520311258 | F21: 0.008495855464 | G21: 0.000593591 | H21: 0.008962428074 | I21: 6.370386e-05 | J21: 5.522817944e-05 | K21: 0.03337391916 | M21: 0.01553541166 | N21: 0.00822302063 | O21: 0.0002511368214 | P21: 0.005618109596 | Q21: 4.516883421e-05 | R21: 6.753291143e-05 | S21: 0.02974038045
A22: 2004 | B22: 1 | C22: 1 | D22: 20 | E22: 0.01468636991 | F22: 0.008310453344 | G22: 0.000593591 | H22: 0.009065106618 | I22: 6.370386e-05 | J22: 5.522817944e-05 | K22: 0.03277445291 | M22: 0.01500737438 | N22: 0.00804357249 | O22: 0.0002511368214 | P22: 0.005682473774 | Q22: 4.516883421e-05 | R22: 6.753291143e-05 | S22: 0.02909725921
A23: 2004 | B23: 1 | C23: 1 | D23: 21 | E23: 0.01438069668 | F23: 0.008091308757 | G23: 0.000593591 | H23: 0.008665390906 | I23: 6.370386e-05 | J23: 5.522817944e-05 | K23: 0.03184991939 | M23: 0.01469501997 | N23: 0.007831465485 | O23: 0.0002511368214 | P23: 0.005431911464 | Q23: 4.516883421e-05 | R23: 6.753291143e-05 | S23: 0.02832223548
A24: 2004 | B24: 1 | C24: 1 | D24: 22 | E24: 0.01344233906 | F24: 0.00782001537 | G24: 0.000593591 | H24: 0.008019879489 | I24: 6.370386e-05 | J24: 5.522817944e-05 | K24: 0.02999475696 | M24: 0.01373615237 | N24: 0.007568884379 | O24: 0.0002511368214 | P24: 0.0050272718 | Q24: 4.516883421e-05 | R24: 6.753291143e-05 | S24: 0.02669614712
A25: 2004 | B25: 1 | C25: 1 | D25: 23 | E25: 0.01255093847 | F25: 0.007636173253 | G25: 0.000593591 | H25: 0.006965579851 | I25: 6.370386e-05 | J25: 5.522817944e-05 | K25: 0.02786521462 | M25: 0.01282526817 | N25: 0.007390946145 | O25: 0.0002511368214 | P25: 0.004366382712 | Q25: 4.516883421e-05 | R25: 6.753291143e-05 | S25: 0.02494643559
A26: 2004 | B26: 1 | C26: 1 | D26: 24 | E26: 0.01067682082 | F26: 0.007557140682 | G26: 0.000593591 | H26: 0.006526962485 | I26: 6.370386e-05 | J26: 5.522817944e-05 | K26: 0.02547344703 | M26: 0.01091018736 | N26: 0.007314451616 | O26: 0.0002511368214 | P26: 0.00409143485 | Q26: 4.516883421e-05 | R26: 6.753291143e-05 | S26: 0.02267991239
A27: 2004 | B27: 1 | C27: 2 | D27: 1 | E27: 0.01058579766 | F27: 0.00747299735 | G27: 0.000593591 | H27: 0.003809505264 | I27: 6.370386e-05 | J27: 5.522817944e-05 | K27: 0.02258082331 | M27: 0.01081717467 | N27: 0.007233010452 | O27: 0.0002511368214 | P27: 0.002387993287 | Q27: 4.516883421e-05 | R27: 6.753291143e-05 | S27: 0.02080201698
A28: 2004 | B28: 1 | C28: 2 | D28: 2 | E28: 0.00980762536 | F28: 0.007148328867 | G28: 0.000593591 | H28: 0.003890040876 | I28: 6.370386e-05 | J28: 5.522817944e-05 | K28: 0.02155851814 | M28: 0.01002199362 | N28: 0.006918768332 | O28: 0.0002511368214 | P28: 0.00243847714 | Q28: 4.516883421e-05 | R28: 6.753291143e-05 | S28: 0.01974307766
A29: 2004 | B29: 1 | C29: 2 | D29: 3 | E29: 0.01005403534 | F29: 0.007028945393 | G29: 0.000593591 | H29: 0.003334496366 | I29: 6.370386e-05 | J29: 5.522817944e-05 | K29: 0.02113000014 | M29: 0.01027378946 | N29: 0.006803218724 | O29: 0.0002511368214 | P29: 0.002090233347 | Q29: 4.516883421e-05 | R29: 6.753291143e-05 | S29: 0.0195310801
A30: 2004 | B30: 1 | C30: 2 | D30: 4 | E30: 0.01036834106 | F30: 0.006894171404 | G30: 0.000593591 | H30: 0.003009949744 | I30: 6.370386e-05 | J30: 5.522817944e-05 | K30: 0.02098498524 | M30: 0.01059496506 | N30: 0.00667277285 | O30: 0.0002511368214 | P30: 0.001886790879 | Q30: 4.516883421e-05 | R30: 6.753291143e-05 | S30: 0.01951836735
A31: 2004 | B31: 1 | C31: 2 | D31: 5 | E31: 0.01077456148 | F31: 0.006929163388 | G31: 0.000593591 | H31: 0.00290318898 | I31: 6.370386e-05 | J31: 5.522817944e-05 | K31: 0.02131943689 | M31: 0.01101006437 | N31: 0.006706641106 | O31: 0.0002511368214 | P31: 0.001819867756 | Q31: 4.516883421e-05 | R31: 6.753291143e-05 | S31: 0.0199004118
A32: 2004 | B32: 1 | C32: 2 | D32: 6 | E32: 0.01140726166 | F32: 0.007265349817 | G32: 0.000593591 | H32: 0.002713604439 | I32: 6.370386e-05 | J32: 5.522817944e-05 | K32: 0.02209873896 | M32: 0.01165659367 | N32: 0.007032031286 | O32: 0.0002511368214 | P32: 0.001701026442 | Q32: 4.516883421e-05 | R32: 6.753291143e-05 | S32: 0.02075348996
A33: 2004 | B33: 1 | C33: 2 | D33: 7 | E33: 0.01211468243 | F33: 0.008007955408 | G33: 0.000593591 | H33: 0.002760128368 | I33: 6.370386e-05 | J33: 5.522817944e-05 | K33: 0.02359528924 | M33: 0.01237947674 | N33: 0.007750788934 | O33: 0.0002511368214 | P33: 0.001730190027 | Q33: 4.516883421e-05 | R33: 6.753291143e-05 | S33: 0.02222429427
A34: 2004 | B34: 1 | C34: 2 | D34: 8 | E34: 0.01238540837 | F34: 0.009208017828 | G34: 0.0005441725708 | H34: 0.00357353106 | I34: 5.840030133e-05 | J34: 5.522817944e-05 | K34: 0.02582475831 | M34: 0.01265612002 | N34: 0.008912312701 | O34: 0.0002302288439 | P34: 0.002240072553 | Q34: 4.140837821e-05 | R34: 6.753291143e-05 | S34: 0.02414767541
A35: 2004 | B35: 1 | C35: 2 | D35: 9 | E35: 0.01261817174 | F35: 0.01007699415 | G35: 0 | H35: 0.005015760281 | I35: 0 | J35: 5.522817944e-05 | K35: 0.02776615435 | M35: 0.01289397097 | N35: 0.009753382827 | O35: 0 | P35: 0.0031441358 | Q35: 0 | R35: 6.753291143e-05 | S35: 0.02585902251
A36: 2004 | B36: 1 | C36: 2 | D36: 10 | E36: 0.01249777135 | F36: 0.01051609594 | G36: 0 | H36: 0.006574439841 | I36: 0 | J36: 5.522817944e-05 | K36: 0.02964353531 | M36: 0.01277093896 | N36: 0.01017838335 | O36: 0 | P36: 0.004121196092 | Q36: 0 | R36: 6.753291143e-05 | S36: 0.02713805132
A37: 2004 | B37: 1 | C37: 2 | D37: 11 | E37: 0.01347285102 | F37: 0.01054883006 | G37: 0 | H37: 0.006074182437 | I37: 0 | J37: 5.522817944e-05 | K37: 0.0301510917 | M37: 0.01376733124 | N37: 0.01021006626 | O37: 0 | P37: 0.003807609094 | Q37: 0 | R37: 6.753291143e-05 | S37: 0.02785253951
A38: 2004 | B38: 1 | C38: 2 | D38: 12 | E38: 0.01253009772 | F38: 0.01065357484 | G38: 0 | H38: 0.007250566077 | I38: 0 | J38: 5.522817944e-05 | K38: 0.03048946682 | M38: 0.01280397189 | N38: 0.01031144728 | O38: 0 | P38: 0.004545026695 | Q38: 0 | R38: 6.753291143e-05 | S38: 0.02772797878
A39: 2004 | B39: 1 | C39: 2 | D39: 13 | E39: 0.01181316824 | F39: 0.01050993144 | G39: 0 | H39: 0.007527808431 | I39: 0 | J39: 5.522817944e-05 | K39: 0.02990613629 | M39: 0.01207137227 | N39: 0.01017241683 | O39: 0 | P39: 0.004718816422 | Q39: 0 | R39: 6.753291143e-05 | S39: 0.02703013843
A40: 2004 | B40: 1 | C40: 2 | D40: 14 | E40: 0.0114546285 | F40: 0.01054081758 | G40: 0 | H40: 0.007321120246 | I40: 0 | J40: 5.522817944e-05 | K40: 0.0293717945 | M40: 0.01170499581 | N40: 0.01020231108 | O40: 0 | P40: 0.004589253667 | Q40: 0 | R40: 6.753291143e-05 | S40: 0.02656409348
A41: 2004 | B41: 1 | C41: 2 | D41: 15 | E41: 0.01182657233 | F41: 0.0103267078 | G41: 0 | H41: 0.00617560242 | I41: 0 | J41: 5.522817944e-05 | K41: 0.02838411073 | M41: 0.01208506934 | N41: 0.0099950772 | O41: 0 | P41: 0.00387118434 | Q41: 0 | R41: 6.753291143e-05 | S41: 0.02601886379
A42: 2004 | B42: 1 | C42: 2 | D42: 16 | E42: 0.01142753561 | F42: 0.01014849744 | G42: 0 | H42: 0.007168301157 | I42: 0 | J42: 5.522817944e-05 | K42: 0.02879956239 | M42: 0.01167731075 | N42: 0.009822589873 | O42: 0 | P42: 0.004493458824 | Q42: 0 | R42: 6.753291143e-05 | S42: 0.02606089236
A43: 2004 | B43: 1 | C43: 2 | D43: 17 | E43: 0.01197350576 | F43: 0.01023535778 | G43: 1.978636647e-05 | H43: 0.009018694183 | I43: 2.123461979e-06 | J43: 5.522817944e-05 | K43: 0.03130469574 | M43: 0.01223521434 | N43: 0.009906660789 | O43: 8.371227295e-06 | P43: 0.005653380079 | Q43: 1.505627792e-06 | R43: 6.753291143e-05 | S43: 0.02787266497
A44: 2004 | B44: 1 | C44: 2 | D44: 18 | E44: 0.0145538545 | F44: 0.009911784378 | G44: 0.000593591 | H44: 0.007875884626 | I44: 6.370386e-05 | J44: 5.522817944e-05 | K44: 0.03305404654 | M44: 0.01487196254 | N44: 0.00959347858 | O44: 0.0002511368214 | P44: 0.004937008434 | Q44: 4.516883421e-05 | R44: 6.753291143e-05 | S44: 0.02976628812
A45: 2004 | B45: 1 | C45: 2 | D45: 19 | E45: 0.01458245052 | F45: 0.009613160286 | G45: 0.000593591 | H45: 0.007349625894 | I45: 6.370386e-05 | J45: 5.522817944e-05 | K45: 0.03225775974 | M45: 0.01490118359 | N45: 0.009304444464 | O45: 0.0002511368214 | P45: 0.004607122469 | Q45: 4.516883421e-05 | R45: 6.753291143e-05 | S45: 0.02917658909
A46: 2004 | B46: 1 | C46: 2 | D46: 20 | E46: 0.0143754849 | F46: 0.009384084531 | G46: 0.000593591 | H46: 0.007206250887 | I46: 6.370386e-05 | J46: 5.522817944e-05 | K46: 0.03167834335 | M46: 0.01468969426 | N46: 0.00908272522 | O46: 0.0002511368214 | P46: 0.004517247661 | Q46: 4.516883421e-05 | R46: 6.753291143e-05 | S46: 0.02865350571
A47: 2004 | B47: 1 | C47: 2 | D47: 21 | E47: 0.01421709367 | F47: 0.009085715458 | G47: 0.000593591 | H47: 0.006769396816 | I47: 6.370386e-05 | J47: 5.522817944e-05 | K47: 0.03078472898 | M47: 0.01452784103 | N47: 0.008793937934 | O47: 0.0002511368214 | P47: 0.004243405123 | Q47: 4.516883421e-05 | R47: 6.753291143e-05 | S47: 0.02792902265
A48: 2004 | B48: 1 | C48: 2 | D48: 22 | E48: 0.01314813664 | F48: 0.008586223844 | G48: 0.000593591 | H48: 0.00654472856 | I48: 6.370386e-05 | J48: 5.522817944e-05 | K48: 0.02899161209 | M48: 0.01343551948 | N48: 0.008310486931 | O48: 0.0002511368214 | P48: 0.004102571537 | Q48: 4.516883421e-05 | R48: 6.753291143e-05 | S48: 0.02621241652
A49: 2004 | B49: 1 | C49: 2 | D49: 23 | E49: 0.01275542552 | F49: 0.007934914521 | G49: 0.000593591 | H49: 0.005530426097 | I49: 6.370386e-05 | J49: 5.522817944e-05 | K49: 0.02693328918 | M49: 0.01303422475 | N49: 0.007680093674 | O49: 0.0002511368214 | P49: 0.003466754731 | Q49: 4.516883421e-05 | R49: 6.753291143e-05 | S49: 0.02454491172
A50: 2004 | B50: 1 | C50: 2 | D50: 24 | E50: 0.01106976497 | F50: 0.007412743435 | G50: 0.000593591 | H50: 0.005426479949 | I50: 6.370386e-05 | J50: 5.522817944e-05 | K50: 0.02462151139 | M50: 0.0113117202 | N50: 0.007174691524 | O50: 0.0002511368214 | P50: 0.003401595953 | Q50: 4.516883421e-05 | R50: 6.753291143e-05 | S50: 0.02225184625
A51: 2004 | B51: 1 | C51: 3 | D51: 1 | E51: 0.008521415006 | F51: 0.007012456104 | G51: 0.000593591 | H51: 0.004863329016 | I51: 6.370386e-05 | J51: 5.522817944e-05 | K51: 0.02110972316 | M51: 0.008707670178 | N51: 0.006787258969 | O51: 0.0002511368214 | P51: 0.003048584065 | Q51: 4.516883421e-05 | R51: 6.753291143e-05 | S51: 0.01890735178
A52: 2004 | B52: 1 | C52: 3 | D52: 2 | E52: 0.008013897113 | F52: 0.006809672283 | G52: 0.000593591 | H52: 0.005180332505 | I52: 6.370386e-05 | J52: 5.522817944e-05 | K52: 0.02071642494 | M52: 0.008189059311 | N52: 0.006590987323 | O52: 0.0002511368214 | P52: 0.003247298111 | Q52: 4.516883421e-05 | R52: 6.753291143e-05 | S52: 0.01839118331
A53: 2004 | B53: 1 | C53: 3 | D53: 3 | E53: 0.008237779568 | F53: 0.006595431624 | G53: 0.000593591 | H53: 0.004443292042 | I53: 6.370386e-05 | J53: 5.522817944e-05 | K53: 0.01998902627 | M53: 0.008417835233 | N53: 0.006383626761 | O53: 0.0002511368214 | P53: 0.002785283346 | Q53: 4.516883421e-05 | R53: 6.753291143e-05 | S53: 0.01795058391
A54: 2004 | B54: 1 | C54: 3 | D54: 4 | E54: 0.008305324055 | F54: 0.006485907923 | G54: 0.000593591 | H54: 0.004385043211 | I54: 6.370386e-05 | J54: 5.522817944e-05 | K54: 0.01988879823 | M54: 0.008486856061 | N54: 0.006277620291 | O54: 0.0002511368214 | P54: 0.002748769991 | Q54: 4.516883421e-05 | R54: 6.753291143e-05 | S54: 0.01787708491
A55: 2004 | B55: 1 | C55: 3 | D55: 5 | E55: 0.008547364059 | F55: 0.006460008773 | G55: 0.000593591 | H55: 0.004040539652 | I55: 6.370386e-05 | J55: 5.522817944e-05 | K55: 0.01976043552 | M55: 0.008734186407 | N55: 0.006252552863 | O55: 0.0002511368214 | P55: 0.002532817491 | Q55: 4.516883421e-05 | R55: 6.753291143e-05 | S55: 0.01788339533
A56: 2004 | B56: 1 | C56: 3 | D56: 6 | E56: 0.008521354736 | F56: 0.006705465926 | G56: 0.000593591 | H56: 0.004366784285 | I56: 6.370386e-05 | J56: 5.522817944e-05 | K56: 0.02030612799 | M56: 0.008707608591 | N56: 0.006490127436 | O56: 0.0002511368214 | P56: 0.00273732436 | Q56: 4.516883421e-05 | R56: 6.753291143e-05 | S56: 0.01829889895
A57: 2004 | B57: 1 | C57: 3 | D57: 7 | E57: 0.009798427396 | F57: 0.00709822678 | G57: 0.000593591 | H57: 0.003927253995 | I57: 6.370386e-05 | J57: 5.522817944e-05 | K57: 0.02153643121 | M57: 0.01001259462 | N57: 0.006870275217 | O57: 0.0002511368214 | P57: 0.002461804231 | Q57: 4.516883421e-05 | R57: 6.753291143e-05 | S57: 0.01970851263
A58: 2004 | B58: 1 | C58: 3 | D58: 8 | E58: 0.01024064544 | F58: 0.007708040087 | G58: 0.0005441725708 | H58: 0.004341947776 | I58: 5.840030133e-05 | J58: 5.522817944e-05 | K58: 0.02294843435 | M58: 0.01046447836 | N58: 0.007460505056 | O58: 0.0002302288439 | P58: 0.002721755562 | Q58: 4.140837821e-05 | R58: 6.753291143e-05 | S58: 0.02098590911
A59: 2004 | B59: 1 | C59: 3 | D59: 9 | E59: 0.0110487272 | F59: 0.008222135367 | G59: 0 | H59: 0.005460468377 | I59: 0 | J59: 5.522817944e-05 | K59: 0.02478655912 | M59: 0.0112902226 | N59: 0.007958090745 | O59: 0 | P59: 0.003422901644 | Q59: 0 | R59: 6.753291143e-05 | S59: 0.0227387479
A60: 2004 | B60: 1 | C60: 3 | D60: 10 | E60: 0.01174170137 | F60: 0.008496698617 | G60: 0 | H60: 0.00581818828 | I60: 0 | J60: 5.522817944e-05 | K60: 0.02611181645 | M60: 0.01199834332 | N60: 0.008223836705 | O60: 0 | P60: 0.003647138826 | Q60: 0 | R60: 6.753291143e-05 | S60: 0.02393685177
A61: 2004 | B61: 1 | C61: 3 | D61: 11 | E61: 0.0128328235 | F61: 0.008517512376 | G61: 0 | H61: 0.0055508752 | I61: 0 | J61: 5.522817944e-05 | K61: 0.02695643925 | M61: 0.01311331444 | N61: 0.008243982054 | O61: 0 | P61: 0.003479573277 | Q61: 0 | R61: 6.753291143e-05 | S61: 0.02490440268
A62: 2004 | B62: 1 | C62: 3 | D62: 12 | E62: 0.01162747964 | F62: 0.008698906114 | G62: 0 | H62: 0.006870235913 | I62: 0 | J62: 5.522817944e-05 | K62: 0.02725184985 | M62: 0.01188162502 | N62: 0.008419550536 | O62: 0 | P62: 0.004306616241 | Q62: 0 | R62: 6.753291143e-05 | S62: 0.02467532471
A63: 2004 | B63: 1 | C63: 3 | D63: 13 | E63: 0.01134547753 | F63: 0.008542234416 | G63: 0 | H63: 0.00633885287 | I63: 0 | J63: 5.522817944e-05 | K63: 0.026281793 | M63: 0.0115934591 | N63: 0.008267910173 | O63: 0 | P63: 0.003973518096 | Q63: 0 | R63: 6.753291143e-05 | S63: 0.02390242028
A64: 2004 | B64: 1 | C64: 3 | D64: 14 | E64: 0.009833051811 | F64: 0.008615338842 | G64: 0 | H64: 0.007315714057 | I64: 0 | J64: 5.522817944e-05 | K64: 0.02581933289 | M64: 0.01004797583 | N64: 0.008338666933 | O64: 0 | P64: 0.004585864791 | Q64: 0 | R64: 6.753291143e-05 | S64: 0.02304004046
A65: 2004 | B65: 1 | C65: 3 | D65: 15 | E65: 0.009729418828 | F65: 0.008464785524 | G65: 0 | H65: 0.0068255058 | I65: 0 | J65: 5.522817944e-05 | K65: 0.02507493833 | M65: 0.009942077709 | N65: 0.008192948466 | O65: 0 | P65: 0.004278577112 | Q65: 0 | R65: 6.753291143e-05 | S65: 0.0224811362
A66: 2004 | B66: 1 | C66: 3 | D66: 16 | E66: 0.01044541599 | F66: 0.008322361092 | G66: 0 | H66: 0.006665160304 | I66: 0 | J66: 5.522817944e-05 | K66: 0.02548816557 | M66: 0.01067372464 | N66: 0.008055097834 | O66: 0 | P66: 0.004178064331 | Q66: 0 | R66: 6.753291143e-05 | S66: 0.02297441972
A67: 2004 | B67: 1 | C67: 3 | D67: 17 | E67: 0.01142990145 | F67: 0.008433540109 | G67: 1.978636647e-05 | H67: 0.007728600033 | I67: 2.123461979e-06 | J67: 5.522817944e-05 | K67: 0.0276691796 | M67: 0.0116797283 | N67: =F67*W$5 -> 0.008162706462 | O67: =G67*X$5 -> 8.371227295e-06 | P67: =H67*Y$5 -> 0.004844682897 | Q67: =I67*Z$5 -> 1.505627792e-06 | R67: 6.753291143e-05 | S67: 0.02476452743
A68: 2004 | B68: 1 | C68: 3 | D68: 18 | E68: 0.01250769058 | F68: 0.0083861274 | G68: 0.000593591 | H68: 0.007789599576 | I68: 6.370386e-05 | J68: 5.522817944e-05 | K68: 0.0293959406 | M68: =E68*V$5 -> 0.012781075 | N68: 0.008116816358 | O68: 0.0002511368214 | P68: 0.004882920539 | Q68: 4.516883421e-05 | R68: 6.753291143e-05 | S68: =SUM(M68:R68) -> 0.02614465046
A69: 2004 | B69: 1 | C69: 3 | D69: 19 | E69: 0.01284318959 | F69: 0.008014998157 | G69: 0.000593591 | H69: 0.006970641283 | I69: 6.370386e-05 | J69: 5.522817944e-05 | K69: 0.02854135207 | M69: 0.01312390711 | N69: 0.007757605513 | O69: 0.0002511368214 | P69: 0.004369555477 | Q69: 4.516883421e-05 | R69: 6.753291143e-05 | S69: 0.02561490667
A70: 2004 | B70: 1 | C70: 3 | D70: 20 | E70: 0.01300707054 | F70: 0.007667718113 | G70: 0.000593591 | H70: 0.006560870656 | I70: 6.370386e-05 | J70: 5.522817944e-05 | K70: 0.02794818235 | M70: 0.01329137006 | N70: 0.007421477977 | O70: 0.0002511368214 | P70: 0.004112690231 | Q70: 4.516883421e-05 | R70: 6.753291143e-05 | S70: 0.02518937683
A71: 2004 | B71: 1 | C71: 3 | D71: 21 | E71: 0.01175404086 | F71: 0.00752394273 | G71: 0.000593591 | H71: 0.006750231594 | I71: 6.370386e-05 | J71: 5.522817944e-05 | K71: 0.02674073822 | M71: 0.01201095252 | N71: 0.007282319778 | O71: 0.0002511368214 | P71: 0.004231391379 | Q71: 4.516883421e-05 | R71: 6.753291143e-05 | S71: 0.02388850225
A72: 2004 | B72: 1 | C72: 3 | D72: 22 | E72: 0.01158478227 | F72: 0.007160317523 | G72: 0.000593591 | H72: 0.006120220058 | I72: 6.370386e-05 | J72: 5.522817944e-05 | K72: 0.02557784289 | M72: 0.01183799439 | N72: 0.006930371986 | O72: 0.0002511368214 | P72: 0.003836467836 | Q72: 4.516883421e-05 | R72: 6.753291143e-05 | S72: 0.02296867278
A73: 2004 | B73: 1 | C73: 3 | D73: 23 | E73: 0.011471686 | F73: 0.006701587174 | G73: 0.000593591 | H73: 0.005033869045 | I73: 6.370386e-05 | J73: 5.522817944e-05 | K73: 0.02391966526 | M73: 0.01172242615 | N73: 0.006486373246 | O73: 0.0002511368214 | P73: 0.003155487302 | Q73: 4.516883421e-05 | R73: 6.753291143e-05 | S73: 0.02172812527
A74: 2004 | B74: 1 | C74: 3 | D74: 24 | E74: 0.008736092766 | F74: 0.006626118742 | G74: 0.000593591 | H74: 0.006243602143 | I74: 6.370386e-05 | J74: 5.522817944e-05 | K74: 0.02231833669 | M74: 0.008927040215 | N74: 0.006413328398 | O74: 0.0002511368214 | P74: 0.003913810055 | Q74: 4.516883421e-05 | R74: 6.753291143e-05 | S74: 0.01961801723
A75: 2004 | B75: 1 | C75: 4 | D75: 1 | E75: 0.007617956069 | F75: 0.006240223134 | G75: 0.000593591 | H75: 0.004591238725 | I75: 6.370386e-05 | J75: 5.522817944e-05 | K75: 0.01916194097 | M75: 0.007784464062 | N75: 0.006039825392 | O75: 0.0002511368214 | P75: 0.002878023915 | Q75: 4.516883421e-05 | R75: 6.753291143e-05 | S75: 0.01706615194
A76: 2004 | B76: 1 | C76: 4 | D76: 2 | E76: 0.007696688278 | F76: 0.006105066843 | G76: 0.000593591 | H76: 0.004227014453 | I76: 6.370386e-05 | J76: 5.522817944e-05 | K76: 0.01874129261 | M76: 0.007864917145 | N76: 0.005909009494 | O76: 0.0002511368214 | P76: 0.002649709461 | Q76: 4.516883421e-05 | R76: 6.753291143e-05 | S76: 0.01678747467
A77: 2004 | B77: 1 | C77: 4 | D77: 3 | E77: 0.007257719043 | F77: 0.005997641276 | G77: 0.000593591 | H77: 0.004320197457 | I77: 6.370386e-05 | J77: 5.522817944e-05 | K77: 0.01828808082 | M77: 0.007416353226 | N77: 0.005805033778 | O77: 0.0002511368214 | P77: 0.002708121347 | Q77: 4.516883421e-05 | R77: 6.753291143e-05 | S77: 0.01629334692
A78: 2004 | B78: 1 | C78: 4 | D78: 4 | E78: 0.007684905893 | F78: 0.005903977474 | G78: 0.000593591 | H78: 0.003723502413 | I78: 6.370386e-05 | J78: 5.522817944e-05 | K78: 0.01802490882 | M78: 0.00785287723 | N78: 0.005714377884 | O78: 0.0002511368214 | P78: 0.002334082289 | Q78: 4.516883421e-05 | R78: 6.753291143e-05 | S78: 0.01626517597
A79: 2004 | B79: 1 | C79: 4 | D79: 5 | E79: 0.007918431115 | F79: 0.005909381484 | G79: 0.000593591 | H79: 0.003604148685 | I79: 6.370386e-05 | J79: 5.522817944e-05 | K79: 0.01814448432 | M79: 0.008091506684 | N79: 0.005719608349 | O79: 0.0002511368214 | P79: 0.002259265251 | Q79: 4.516883421e-05 | R79: 6.753291143e-05 | S79: 0.01643421885
A80: 2004 | B80: 1 | C80: 4 | D80: 6 | E80: 0.008110754159 | F80: 0.006061336803 | G80: 0.000593591 | H80: 0.003588167987 | I80: 6.370386e-05 | J80: 5.522817944e-05 | K80: 0.01847278199 | M80: 0.008288033391 | N80: 0.005866683795 | O80: 0.0002511368214 | P80: 0.00224924773 | Q80: 4.516883421e-05 | R80: 6.753291143e-05 | S80: 0.01676780348
A81: 2004 | B81: 1 | C81: 4 | D81: 7 | E81: 0.008287618846 | F81: 0.006485360012 | G81: 0.000593591 | H81: 0.004021820629 | I81: 6.370386e-05 | J81: 5.522817944e-05 | K81: 0.01950732253 | M81: 0.008468763864 | N81: 0.006277089976 | O81: 0.0002511368214 | P81: 0.002521083448 | Q81: 4.516883421e-05 | R81: 6.753291143e-05 | S81: 0.01763077585
A82: 2004 | B82: 1 | C82: 4 | D82: 8 | E82: 0.009386213176 | F82: 0.006891334683 | G82: 0.0005441725708 | H82: 0.00329956715 | I82: 5.840030133e-05 | J82: 5.522817944e-05 | K82: 0.02023491606 | M82: 0.009591370505 | N82: 0.006670027227 | O82: 0.0002302288439 | P82: 0.002068337923 | Q82: 4.140837821e-05 | R82: 6.753291143e-05 | S82: 0.01866890579
A83: 2004 | B83: 1 | C83: 4 | D83: 9 | E83: 0.0107504497 | F83: 0.007217290922 | G83: 0 | H83: 0.003894543513 | I83: 0 | J83: 5.522817944e-05 | K83: 0.02191751231 | M83: 0.01098542556 | N83: 0.006985515748 | O83: 0 | P83: 0.002441299623 | Q83: 0 | R83: 6.753291143e-05 | S83: 0.02047977385
A84: 2004 | B84: 1 | C84: 4 | D84: 10 | E84: 0.01133209846 | F84: 0.007671941662 | G84: 0 | H84: 0.004411120601 | I84: 0 | J84: 5.522817944e-05 | K84: 0.0234703889 | M84: 0.0115797876 | N84: 0.007425565892 | O84: 0 | P84: 0.002765116637 | Q84: 0 | R84: 6.753291143e-05 | S84: 0.02183800304
A85: 2004 | B85: 1 | C85: 4 | D85: 11 | E85: 0.0108387677 | F85: 0.007934562756 | G85: 0 | H85: 0.004974931435 | I85: 0 | J85: 5.522817944e-05 | K85: 0.02380349007 | M85: 0.01107567396 | N85: 0.007679753205 | O85: 0 | P85: 0.003118542186 | Q85: 0 | R85: 6.753291143e-05 | S85: 0.02194150226
A86: 2004 | B86: 1 | C86: 4 | D86: 12 | E86: 0.01068372019 | F86: 0.008019457228 | G86: 0 | H86: 0.005251141179 | I86: 0 | J86: 5.522817944e-05 | K86: 0.02400954677 | M86: 0.01091723753 | N86: 0.007761921386 | O86: 0 | P86: 0.003291684619 | Q86: 0 | R86: 6.753291143e-05 | S86: 0.02203837644
A87: 2004 | B87: 1 | C87: 4 | D87: 13 | E87: 0.01024375723 | F87: 0.0080048285 | G87: 0 | H87: 0.005329390379 | I87: 0 | J87: 5.522817944e-05 | K87: 0.02363320429 | M87: 0.01046765817 | N87: 0.007747762444 | O87: 0 | P87: 0.003340735232 | Q87: 0 | R87: 6.753291143e-05 | S87: 0.02162368875
A88: 2004 | B88: 1 | C88: 4 | D88: 14 | E88: 0.01024703279 | F88: 0.00794244046 | G88: 0 | H88: 0.005008422649 | I88: 0 | J88: 5.522817944e-05 | K88: 0.02325312408 | M88: 0.01047100532 | N88: 0.007687377925 | O88: 0 | P88: 0.003139536196 | Q88: 0 | R88: 6.753291143e-05 | S88: 0.02136545235
A89: 2004 | B89: 1 | C89: 4 | D89: 15 | E89: 0.01002170073 | F89: 0.007942873693 | G89: 0 | H89: 0.004831890601 | I89: 0 | J89: 5.522817944e-05 | K89: 0.02285169321 | M89: 0.01024074811 | N89: 0.007687797245 | O89: 0 | P89: 0.003028876854 | Q89: 0 | R89: 6.753291143e-05 | S89: 0.02102495512
A90: 2004 | B90: 1 | C90: 4 | D90: 16 | E90: 0.01040030852 | F90: 0.007817912826 | G90: 0 | H90: 0.004807252143 | I90: 0 | J90: 5.522817944e-05 | K90: 0.02308070167 | M90: 0.01062763124 | N90: 0.007566849356 | O90: 0 | P90: 0.003013432205 | Q90: 0 | R90: 6.753291143e-05 | S90: 0.02127544572
A91: 2004 | B91: 1 | C91: 4 | D91: 17 | E91: 0.01136763633 | F91: 0.007936043194 | G91: 9.893183531e-06 | H91: 0.005545038935 | I91: 1.061731021e-06 | J91: 5.522817944e-05 | K91: 0.02491490155 | M91: 0.01161610223 | N91: 0.0076811861 | O91: 4.185613773e-06 | P91: 0.003475914807 | Q91: 7.528139185e-07 | R91: 6.753291143e-05 | S91: 0.02284567447
A92: 2004 | B92: 1 | C92: 4 | D92: 18 | E92: 0.01287594175 | F92: 0.007792586953 | G92: 0.000593591 | H92: 0.005529796057 | I92: 6.370386e-05 | J92: 5.522817944e-05 | K92: 0.02691084779 | M92: 0.01315737514 | N92: 0.007542336795 | O92: 0.0002511368214 | P92: 0.003466359789 | Q92: 4.516883421e-05 | R92: 6.753291143e-05 | S92: 0.02452991029
A93: 2004 | B93: 1 | C93: 4 | D93: 19 | E93: 0.01302670368 | F93: 0.007404209658 | G93: 0.000593591 | H93: 0.005217580542 | I93: 6.370386e-05 | J93: 5.522817944e-05 | K93: 0.02636101692 | M93: 0.01331143232 | N93: 0.0071664318 | O93: 0.0002511368214 | P93: 0.003270647091 | Q93: 4.516883421e-05 | R93: 6.753291143e-05 | S93: 0.02411234978
A94: 2004 | B94: 1 | C94: 4 | D94: 20 | E94: 0.01317550282 | F94: 0.007154421906 | G94: 0.000593591 | H94: 0.004810372406 | I94: 6.370386e-05 | J94: 5.522817944e-05 | K94: 0.02585282017 | M94: 0.01346348381 | N94: 0.0069246657 | O94: 0.0002511368214 | P94: 0.003015388146 | Q94: 4.516883421e-05 | R94: 6.753291143e-05 | S94: 0.02376737622
A95: 2004 | B95: 1 | C95: 4 | D95: 21 | E95: 0.01257772932 | F95: 0.007088302983 | G95: 0.000593591 | H95: 0.005049346666 | I95: 6.370386e-05 | J95: 5.522817944e-05 | K95: 0.02542790201 | M95: 0.01285264459 | N95: 0.006860670111 | O95: 0.0002511368214 | P95: 0.003165189469 | Q95: 4.516883421e-05 | R95: 6.753291143e-05 | S95: 0.02324234274
A96: 2004 | B96: 1 | C96: 4 | D96: 22 | E96: 0.01183155239 | F96: 0.006993769669 | G96: 0.000593591 | H96: 0.004854981048 | I96: 6.370386e-05 | J96: 5.522817944e-05 | K96: 0.02439282615 | M96: 0.01209015825 | N96: 0.006769172629 | O96: 0.0002511368214 | P96: 0.003043351131 | Q96: 4.516883421e-05 | R96: 6.753291143e-05 | S96: 0.02226652057
A97: 2004 | B97: 1 | C97: 4 | D97: 23 | E97: 0.009866990284 | F97: 0.006988547339 | G97: 0.000593591 | H97: 0.004790918386 | I97: 6.370386e-05 | J97: 5.522817944e-05 | K97: 0.02235897905 | M97: 0.01008265611 | N97: 0.006764118008 | O97: 0.0002511368214 | P97: 0.003003193368 | Q97: 4.516883421e-05 | R97: 6.753291143e-05 | S97: 0.02021380605
A98: 2004 | B98: 1 | C98: 4 | D98: 24 | E98: 0.008469410153 | F98: 0.007005536185 | G98: 0.000593591 | H98: 0.004816143681 | I98: 6.370386e-05 | J98: 5.522817944e-05 | K98: 0.02100361306 | M98: 0.008654528638 | N98: 0.006780561276 | O98: 0.0002511368214 | P98: 0.003019005877 | Q98: 4.516883421e-05 | R98: 6.753291143e-05 | S98: 0.01881793436
A99: 2004 | B99: 1 | C99: 5 | D99: 1 | E99: 0.009531634861 | F99: 0.00693691698 | G99: 0.000593591 | H99: 0.003459146047 | I99: 6.370386e-05 | J99: 5.522817944e-05 | K99: 0.02064022093 | M99: 0.009739970717 | N99: 0.006714145699 | O99: 0.0002511368214 | P99: 0.00216837016 | Q99: 4.516883421e-05 | R99: 6.753291143e-05 | S99: 0.01898632514
A100: 2004 | B100: 1 | C100: 5 | D100: 2 | E100: 0.009383868572 | F100: 0.006715779335 | G100: 0.000593591 | H100: 0.003209057022 | I100: 6.370386e-05 | J100: 5.522817944e-05 | K100: 0.02002122797 | M100: 0.009588974655 | N100: 0.006500109641 | O100: 0.0002511368214 | P100: 0.002011601532 | Q100: 4.516883421e-05 | R100: 6.753291143e-05 | S100: 0.0184645244
A101: 2004 | B101: 1 | C101: 5 | D101: 3 | E101: 0.009358217399 | F101: 0.006707799781 | G101: 0.000593591 | H101: 0.002941627267 | I101: 6.370386e-05 | J101: 5.522817944e-05 | K101: 0.01972016749 | M101: 0.009562762816 | N101: 0.006492386342 | O101: 0.0002511368214 | P101: 0.001843962846 | Q101: 4.516883421e-05 | R101: 6.753291143e-05 | S101: 0.01826295057
A102: 2004 | B102: 1 | C102: 5 | D102: 4 | E102: 0.009656218725 | F102: 0.006586740232 | G102: 0.000593591 | H102: 0.002892506789 | I102: 6.370386e-05 | J102: 5.522817944e-05 | K102: 0.01984798879 | M102: 0.009867277648 | N102: 0.006375214484 | O102: 0.0002511368214 | P102: 0.001813171611 | Q102: 4.516883421e-05 | R102: 6.753291143e-05 | S102: 0.01841950231
A103: 2004 | B103: 1 | C103: 5 | D103: 5 | E103: 0.0101275038 | F103: 0.006713559731 | G103: 0.000593591 | H103: 0.002720039612 | I103: 6.370386e-05 | J103: 5.522817944e-05 | K103: 0.02027362619 | M103: 0.01034886375 | N103: 0.006497961317 | O103: 0.0002511368214 | P103: 0.001705060338 | Q103: 4.516883421e-05 | R103: 6.753291143e-05 | S103: 0.01891572397
A104: 2004 | B104: 1 | C104: 5 | D104: 6 | E104: 0.01082276471 | F104: 0.007115268685 | G104: 0.000593591 | H104: 0.003050515536 | I104: 6.370386e-05 | J104: 5.522817944e-05 | K104: 0.02170107197 | M104: 0.01105932119 | N104: 0.006886769841 | O104: 0.0002511368214 | P104: 0.001912219598 | Q104: 4.516883421e-05 | R104: 6.753291143e-05 | S104: 0.02022214919
A105: 2004 | B105: 1 | C105: 5 | D105: 7 | E105: 0.01252934419 | F105: 0.008096720755 | G105: 0.000593591 | H105: 0.003387370361 | I105: 6.370386e-05 | J105: 5.522817944e-05 | K105: 0.02472595835 | M105: 0.0128032019 | N105: 0.007836703682 | O105: 0.0002511368214 | P105: 0.002123377479 | Q105: 4.516883421e-05 | R105: 6.753291143e-05 | S105: 0.02312712162
A106: 2004 | B106: 1 | C106: 5 | D106: 8 | E106: 0.01182732018 | F106: 0.009688410098 | G106: 0.0005441725708 | H106: 0.005430678737 | I106: 5.840030133e-05 | J106: 5.522817944e-05 | K106: 0.02760421007 | M106: 0.01208583353 | N106: 0.009377277714 | O106: 0.0002302288439 | P106: 0.003404227969 | Q106: 4.140837821e-05 | R106: 6.753291143e-05 | S106: 0.02520650935
A107: 2004 | B107: 1 | C107: 5 | D107: 9 | E107: 0.01144407368 | F107: 0.01085102727 | G107: 0 | H107: 0.007551419742 | I107: 0 | J107: 5.522817944e-05 | K107: 0.02990174888 | M107: 0.0116942103 | N107: 0.01050255875 | O107: 0 | P107: 0.004733617203 | Q107: 0 | R107: 6.753291143e-05 | S107: 0.02699791916
A108: 2004 | B108: 1 | C108: 5 | D108: 10 | E108: 0.01097635343 | F108: 0.01122325513 | G108: 0 | H108: 0.008714902841 | I108: 0 | J108: 5.522817944e-05 | K108: 0.03096973959 | M108: 0.01121626695 | N108: 0.01086283293 | O108: 0 | P108: 0.005462948084 | Q108: 0 | R108: 6.753291143e-05 | S108: 0.02760958087
A109: 2004 | B109: 1 | C109: 5 | D109: 11 | E109: 0.01062656453 | F109: 0.01145874833 | G109: 0 | H109: 0.009112740178 | I109: 0 | J109: 5.522817944e-05 | K109: 0.03125328122 | M109: 0.0108588326 | N109: 0.01109076353 | O109: 0 | P109: 0.005712332932 | Q109: 0 | R109: 6.753291143e-05 | S109: 0.02772946197
A110: 2004 | B110: 1 | C110: 5 | D110: 12 | E110: 0.01045459299 | F110: 0.01135343914 | G110: 0 | H110: 0.008616605572 | I110: 0 | J110: 5.522817944e-05 | K110: 0.03047986588 | M110: 0.01068310222 | N110: 0.01098883622 | O110: 0 | P110: 0.005401330315 | Q110: 0 | R110: 6.753291143e-05 | S110: 0.02714080167
A111: 2004 | B111: 1 | C111: 5 | D111: 13 | E111: 0.010083986 | F111: 0.01109527909 | G111: 0 | H111: 0.00839474425 | I111: 0 | J111: 5.522817944e-05 | K111: 0.02962923753 | M111: 0.01030439476 | N111: 0.0107389667 | O111: 0 | P111: 0.005262256259 | Q111: 0 | R111: 6.753291143e-05 | S111: 0.02637315063
A112: 2004 | B112: 1 | C112: 5 | D112: 14 | E112: 0.01013717391 | F112: 0.0112769428 | G112: 0 | H112: 0.007786811358 | I112: 0 | J112: 5.522817944e-05 | K112: 0.02925615625 | M112: 0.01035874522 | N112: 0.01091479648 | O112: 0 | P112: 0.004881172741 | Q112: 0 | R112: 6.753291143e-05 | S112: 0.02622224735
A113: 2004 | B113: 1 | C113: 5 | D113: 15 | E113: 0.009898755637 | F113: 0.01114267696 | G113: 0 | H113: 0.007696224681 | I113: 0 | J113: 5.522817944e-05 | K113: 0.02879288546 | M113: 0.01011511576 | N113: 0.01078484243 | O113: 0 | P113: 0.004824388366 | Q113: 0 | R113: 6.753291143e-05 | S113: 0.02579187947
A114: 2004 | B114: 1 | C114: 5 | D114: 16 | E114: 0.009992416775 | F114: 0.01081874688 | G114: 0 | H114: 0.008178890218 | I114: 0 | J114: 5.522817944e-05 | K114: 0.02904528205 | M114: 0.01021082408 | N114: 0.010471315 | O114: 0 | P114: 0.00512694788 | Q114: 0 | R114: 6.753291143e-05 | S114: 0.02587661988
A115: 2004 | B115: 1 | C115: 5 | D115: 17 | E115: 0.01164821585 | F115: 0.0105749846 | G115: 0 | H115: 0.008372728792 | I115: 0 | J115: 5.522817944e-05 | K115: 0.03065115742 | M115: 0.01190281447 | N115: 0.01023538087 | O115: 0 | P115: 0.00524845584 | Q115: 0 | R115: 6.753291143e-05 | S115: 0.02745418409
A116: 2004 | B116: 1 | C116: 5 | D116: 18 | E116: 0.01493121241 | F116: 0.010053561 | G116: 0.000593591 | H116: 0.00702949834 | I116: 6.370386e-05 | J116: 5.522817944e-05 | K116: 0.03272679478 | M116: 0.01525756848 | N116: 0.009730702203 | O116: 0.0002511368214 | P116: 0.0044064501 | Q116: 4.516883421e-05 | R116: 6.753291143e-05 | S116: 0.02975855935
A117: 2004 | B117: 1 | C117: 5 | D117: 19 | E117: 0.01683051289 | F117: 0.009583686307 | G117: 0.000593591 | H117: 0.005075161558 | I117: 6.370386e-05 | J117: 5.522817944e-05 | K117: 0.03220188379 | M117: 0.01719838255 | N117: 0.009275917009 | O117: 0.0002511368214 | P117: 0.003181371567 | Q117: 4.516883421e-05 | R117: 6.753291143e-05 | S117: 0.0300195097
A118: 2004 | B118: 1 | C118: 5 | D118: 20 | E118: 0.01502224662 | F118: 0.009582010607 | G118: 0.000593591 | H118: 0.006294013052 | I118: 6.370386e-05 | J118: 5.522817944e-05 | K118: 0.03161079332 | M118: 0.01535059246 | N118: 0.009274295122 | O118: 0.0002511368214 | P118: 0.003945410198 | Q118: 4.516883421e-05 | R118: 6.753291143e-05 | S118: 0.02893413634
A119: 2004 | B119: 1 | C119: 5 | D119: 21 | E119: 0.01425035755 | F119: 0.009348733892 | G119: 0.000593591 | H119: 0.005838641785 | I119: 6.370386e-05 | J119: 5.522817944e-05 | K119: 0.03015025627 | M119: 0.01456183197 | N119: 0.009048509827 | O119: 0.0002511368214 | P119: 0.003659960132 | Q119: 4.516883421e-05 | R119: 6.753291143e-05 | S119: 0.0276341405
A120: 2004 | B120: 1 | C120: 5 | D120: 22 | E120: 0.01351327862 | F120: 0.0086587417 | G120: 0.000593591 | H120: 0.005461290567 | I120: 6.370386e-05 | J120: 5.522817944e-05 | K120: 0.02834583393 | M120: 0.01380864248 | N120: 0.008380675958 | O120: 0.0002511368214 | P120: 0.003423417034 | Q120: 4.516883421e-05 | R120: 6.753291143e-05 | S120: 0.02597657404
A121: 2004 | B121: 1 | C121: 5 | D121: 23 | E121: 0.01189069575 | F121: 0.008385458991 | G121: 0.000593591 | H121: 0.005069997936 | I121: 6.370386e-05 | J121: 5.522817944e-05 | K121: 0.02605867572 | M121: 0.01215059432 | N121: 0.008116169415 | O121: 0.0002511368214 | P121: 0.003178134744 | Q121: 4.516883421e-05 | R121: 6.753291143e-05 | S121: 0.02380873705
A122: 2004 | B122: 1 | C122: 5 | D122: 24 | E122: 0.01007361367 | F122: 0.00803975726 | G122: 0.000593591 | H122: 0.004404494705 | I122: 6.370386e-05 | J122: 5.522817944e-05 | K122: 0.02323038868 | M122: 0.01029379573 | N122: 0.007781569506 | O122: 0.0002511368214 | P122: 0.002760963185 | Q122: 4.516883421e-05 | R122: 6.753291143e-05 | S122: 0.02120016698
A123: 2004 | B123: 1 | C123: 6 | D123: 1 | E123: 0.01036899955 | F123: 0.008171451113 | G123: 0.000593591 | H123: 0.005240645419 | I123: 6.370386e-05 | J123: 5.522817944e-05 | K123: 0.02449361912 | M123: 0.01059563794 | N123: 0.007909034159 | O123: 0.0002511368214 | P123: 0.003285105339 | Q123: 4.516883421e-05 | R123: 6.753291143e-05 | S123: 0.02215361601
A124: 2004 | B124: 1 | C124: 6 | D124: 2 | E124: 0.01044324635 | F124: 0.007749381893 | G124: 0.000593591 | H124: 0.004673440759 | I124: 6.370386e-05 | J124: 5.522817944e-05 | K124: 0.02357859204 | M124: 0.01067150757 | N124: 0.007500519217 | O124: 0.0002511368214 | P124: 0.002929552367 | Q124: 4.516883421e-05 | R124: 6.753291143e-05 | S124: 0.02146541772
A125: 2004 | B125: 1 | C125: 6 | D125: 3 | E125: 0.01033068851 | F125: 0.007654485796 | G125: 0.000593591 | H125: 0.004511520126 | I125: 6.370386e-05 | J125: 5.522817944e-05 | K125: 0.02320921747 | M125: 0.01055648952 | N125: 0.007408670602 | O125: 0.0002511368214 | P125: 0.002828052209 | Q125: 4.516883421e-05 | R125: 6.753291143e-05 | S125: 0.0211570509
A126: 2004 | B126: 1 | C126: 6 | D126: 4 | E126: 0.0109484479 | F126: 0.007414005439 | G126: 0.000593591 | H126: 0.004271021142 | I126: 6.370386e-05 | J126: 5.522817944e-05 | K126: 0.02334599752 | M126: 0.01118775147 | N126: 0.007175913 | O126: 0.0002511368214 | P126: 0.002677295111 | Q126: 4.516883421e-05 | R126: 6.753291143e-05 | S126: 0.02140479815
A127: 2004 | B127: 1 | C127: 6 | D127: 5 | E127: 0.01148554464 | F127: 0.007439691514 | G127: 0.000593591 | H127: 0.004241453919 | I127: 6.370386e-05 | J127: 5.522817944e-05 | K127: 0.02387921311 | M127: 0.01173658769 | N127: 0.007200774196 | O127: 0.0002511368214 | P127: 0.002658760858 | Q127: 4.516883421e-05 | R127: 6.753291143e-05 | S127: 0.02195996132
A128: 2004 | B128: 1 | C128: 6 | D128: 6 | E128: 0.01215065028 | F128: 0.007846896764 | G128: 0.000593591 | H128: 0.004503283669 | I128: 6.370386e-05 | J128: 5.522817944e-05 | K128: 0.02521335375 | M128: 0.01241623075 | N128: 0.007594902508 | O128: 0.0002511368214 | P128: 0.002822889175 | Q128: 4.516883421e-05 | R128: 6.753291143e-05 | S128: 0.023197861
A129: 2004 | B129: 1 | C129: 6 | D129: 7 | E129: 0.0136427577 | F129: 0.008739999672 | G129: 0.000593591 | H129: 0.005075273615 | I129: 6.370386e-05 | J129: 5.522817944e-05 | K129: 0.02817055403 | M129: 0.01394095163 | N129: 0.008459324421 | O129: 0.0002511368214 | P129: 0.00318144181 | Q129: 4.516883421e-05 | R129: 6.753291143e-05 | S129: 0.02594555643
A130: 2004 | B130: 1 | C130: 6 | D130: 8 | E130: 0.01353012651 | F130: 0.01047863073 | G130: 0.0005441725708 | H130: 0.007973073162 | I130: 5.840030133e-05 | J130: 5.522817944e-05 | K130: 0.03263963145 | M130: 0.01382585862 | N130: 0.0101421213 | O130: 0.0002302288439 | P130: 0.004997931193 | Q130: 4.140837821e-05 | R130: 6.753291143e-05 | S130: 0.02930508125
A131: 2004 | B131: 1 | C131: 6 | D131: 9 | E131: 0.01282266067 | F131: 0.01156927316 | G131: 0 | H131: 0.009622427396 | I131: 0 | J131: 5.522817944e-05 | K131: 0.03406958941 | M131: 0.01310292949 | N131: =F131*W$5 -> 0.01119773897 | O131: =G131*X$5 -> 0 | P131: =H131*Y$5 -> 0.006031831022 | Q131: =I131*Z$5 -> 0 | R131: 6.753291143e-05 | S131: 0.03040003239
A132: 2004 | B132: 1 | C132: 6 | D132: 10 | E132: 0.01212066291 | F132: 0.01192454305 | G132: 0 | H132: 0.01066621188 | I132: 0 | J132: 5.522817944e-05 | K132: 0.03476664602 | M132: =E132*V$5 -> 0.01238558794 | N132: 0.01154159977 | O132: 0 | P132: 0.006686128671 | Q132: 0 | R132: 6.753291143e-05 | S132: =SUM(M132:R132) -> 0.0306808493
A133: 2004 | B133: 1 | C133: 6 | D133: 11 | E133: 0.01157294113 | F133: 0.01210207178 | G133: 0 | H133: 0.0106999452 | I133: 0 | J133: 5.522817944e-05 | K133: 0.0344301863 | M133: 0.01182589445 | N133: 0.01171342737 | O133: 0 | P133: 0.006707274448 | Q133: 0 | R133: 6.753291143e-05 | S133: 0.03031412918
A134: 2004 | B134: 1 | C134: 6 | D134: 12 | E134: 0.01136984917 | F134: 0.01197921482 | G134: 0 | H134: 0.01044294118 | I134: 0 | J134: 5.522817944e-05 | K134: 0.03384723334 | M134: 0.01161836344 | N134: 0.01159451582 | O134: 0 | P134: 0.006546171142 | Q134: 0 | R134: 6.753291143e-05 | S134: 0.02982658331
A135: 2004 | B135: 1 | C135: 6 | D135: 13 | E135: 0.01090100525 | F135: 0.01173514452 | G135: 0 | H135: 0.01023643948 | I135: 0 | J135: 5.522817944e-05 | K135: 0.03292781742 | M135: 0.01113927185 | N135: 0.01135828356 | O135: 0 | P135: 0.006416725287 | Q135: 0 | R135: 6.753291143e-05 | S135: 0.02898181361
A136: 2004 | B136: 1 | C136: 6 | D136: 14 | E136: 0.01049951029 | F136: 0.01179774733 | G136: 0 | H136: 0.009916304417 | I136: 0 | J136: 5.522817944e-05 | K136: 0.03226879022 | M136: 0.0107290013 | N136: 0.01141887596 | O136: 0 | P136: 0.006216048211 | Q136: 0 | R136: 6.753291143e-05 | S136: 0.02843145838
A137: 2004 | B137: 1 | C137: 6 | D137: 15 | E137: 0.01103703553 | F137: 0.01160829742 | G137: 0 | H137: 0.00912351656 | I137: 0 | J137: 5.522817944e-05 | K137: 0.03182407769 | M137: 0.01127827539 | N137: 0.01123551001 | O137: 0 | P137: 0.005719088121 | Q137: 0 | R137: 6.753291143e-05 | S137: 0.02830040644
A138: 2004 | B138: 1 | C138: 6 | D138: 16 | E138: 0.01193771217 | F138: 0.01119542408 | G138: 0 | H138: 0.008930483286 | I138: 0 | J138: 5.522817944e-05 | K138: 0.03211884772 | M138: 0.0121986384 | N138: 0.01083589564 | O138: 0 | P138: 0.005598084964 | Q138: 0 | R138: 6.753291143e-05 | S138: 0.02870015191
A139: 2004 | B139: 1 | C139: 6 | D139: 17 | E139: 0.01342097131 | F139: 0.01093803787 | G139: 0 | H139: 0.008833220305 | I139: 0 | J139: 5.522817944e-05 | K139: 0.03324745766 | M139: 0.01371431758 | N139: 0.0105867751 | O139: 0 | P139: 0.005537115539 | Q139: 0 | R139: 6.753291143e-05 | S139: 0.02990574112
A140: 2004 | B140: 1 | C140: 6 | D140: 18 | E140: 0.01561275983 | F140: 0.01070490351 | G140: 0.0005836978165 | H140: 0.009133489422 | I140: 6.264212898e-05 | J140: 5.522817944e-05 | K140: 0.03615272088 | M140: 0.01595401269 | N140: 0.01036112758 | O140: 0.0002469512076 | P140: 0.005725339622 | Q140: 4.441602029e-05 | R140: 6.753291143e-05 | S140: 0.03239938003
A141: 2004 | B141: 1 | C141: 6 | D141: 19 | E141: 0.01740228941 | F141: 0.01022052744 | G141: 0.000593591 | H141: 0.007186884274 | I141: 6.370386e-05 | J141: 5.522817944e-05 | K141: 0.03552222416 | M141: 0.01778265657 | N141: 0.009892306703 | O141: 0.0002511368214 | P141: 0.004505107675 | Q141: 4.516883421e-05 | R141: 6.753291143e-05 | S141: 0.03254390951
A142: 2004 | B142: 1 | C142: 6 | D142: 20 | E142: 0.01728151263 | F142: 0.009999053984 | G142: 0.000593591 | H142: 0.007083691786 | I142: 6.370386e-05 | J142: 5.522817944e-05 | K142: 0.03507678144 | M142: 0.01765923993 | N142: 0.009677945621 | O142: 0.0002511368214 | P142: 0.004440421331 | Q142: 4.516883421e-05 | R142: 6.753291143e-05 | S142: 0.03214144545
A143: 2004 | B143: 1 | C143: 6 | D143: 21 | E143: 0.0157783345 | F143: 0.009755092029 | G143: 0.000593591 | H143: 0.007323336058 | I143: 6.370386e-05 | J143: 5.522817944e-05 | K143: 0.03356928563 | M143: 0.01612320638 | N143: 0.00944181823 | O143: 0.0002511368214 | P143: 0.004590642652 | Q143: 4.516883421e-05 | R143: 6.753291143e-05 | S143: 0.03051950583
A144: 2004 | B144: 1 | C144: 6 | D144: 22 | E144: 0.01438405039 | F144: 0.00915866886 | G144: 0.000593591 | H144: 0.00681033651 | I144: 6.370386e-05 | J144: 5.522817944e-05 | K144: 0.0310655788 | M144: 0.01469844697 | N144: 0.008864548519 | O144: 0.0002511368214 | P144: 0.004269068224 | Q144: 4.516883421e-05 | R144: 6.753291143e-05 | S144: 0.02819590228
A145: 2004 | B145: 1 | C145: 6 | D145: 23 | E145: 0.01325704564 | F145: 0.008804110248 | G145: 0.000593591 | H145: 0.006736866578 | I145: 6.370386e-05 | J145: 5.522817944e-05 | K145: 0.02951054551 | M145: 0.01354680894 | N145: 0.008521376158 | O145: 0.0002511368214 | P145: 0.004223013502 | Q145: 4.516883421e-05 | R145: 6.753291143e-05 | S145: 0.02665503717
A146: 2004 | B146: 1 | C146: 6 | D146: 24 | E146: 0.0116420865 | F146: 0.008415690412 | G146: 0.000593591 | H146: 0.005737695322 | I146: 6.370386e-05 | J146: 5.522817944e-05 | K146: 0.02650799527 | M146: 0.01189655114 | N146: 0.008145429987 | O146: 0.0002511368214 | P146: 0.003596681711 | Q146: 4.516883421e-05 | R146: 6.753291143e-05 | S146: 0.02400250141
A147: 2004 | B147: 1 | C147: 7 | D147: 1 | E147: 0.01081147141 | F147: 0.008249743411 | G147: 0.000593591 | H147: 0.005267439441 | I147: 6.370386e-05 | J147: 5.522817944e-05 | K147: 0.02504117731 | M147: 0.01104778105 | N147: 0.007984812188 | O147: 0.0002511368214 | P147: 0.003301901206 | Q147: 4.516883421e-05 | R147: 6.753291143e-05 | S147: 0.02269833301
A148: 2004 | B148: 1 | C148: 7 | D148: 2 | E148: 0.01093767399 | F148: 0.007836973964 | G148: 0.000593591 | H148: 0.004767069808 | I148: 6.370386e-05 | J148: 5.522817944e-05 | K148: 0.02425424081 | M148: 0.01117674208 | N148: 0.007585298367 | O148: 0.0002511368214 | P148: 0.002988243856 | Q148: 4.516883421e-05 | R148: 6.753291143e-05 | S148: 0.02211412287
A149: 2004 | B149: 1 | C149: 7 | D149: 3 | E149: 0.01084384753 | F149: 0.007752533618 | G149: 0.000593591 | H149: 0.004638604758 | I149: 6.370386e-05 | J149: 5.522817944e-05 | K149: 0.02394750894 | M149: 0.01108086482 | N149: 0.007503569728 | O149: 0.0002511368214 | P149: 0.002907715374 | Q149: 4.516883421e-05 | R149: 6.753291143e-05 | S149: 0.02185598849
A150: 2004 | B150: 1 | C150: 7 | D150: 4 | E150: 0.01151180963 | F150: 0.007505458734 | G150: 0.000593591 | H150: 0.00436214926 | I150: 6.370386e-05 | J150: 5.522817944e-05 | K150: 0.02409194066 | M150: 0.01176342677 | N150: 0.007264429375 | O150: 0.0002511368214 | P150: 0.002734418889 | Q150: 4.516883421e-05 | R150: 6.753291143e-05 | S150: 0.0221261136
A151: 2004 | B151: 1 | C151: 7 | D151: 5 | E151: 0.01207057253 | F151: 0.007514457622 | G151: 0.000593591 | H151: 0.00422843005 | I151: 6.370386e-05 | J151: 5.522817944e-05 | K151: 0.02452598324 | M151: 0.01233440272 | N151: 0.007273139274 | O151: 0.0002511368214 | P151: 0.00265059683 | Q151: 4.516883421e-05 | R151: 6.753291143e-05 | S151: 0.02262197739
A152: 2004 | B152: 1 | C152: 7 | D152: 6 | E152: 0.01273072787 | F152: 0.007912829315 | G152: 0.000593591 | H152: 0.004384922773 | I152: 6.370386e-05 | J152: 5.522817944e-05 | K152: 0.025741003 | M152: 0.01300898728 | N152: 0.007658717709 | O152: 0.0002511368214 | P152: 0.002748694495 | Q152: 4.516883421e-05 | R152: 6.753291143e-05 | S152: 0.02378023805
A153: 2004 | B153: 1 | C153: 7 | D153: 7 | E153: 0.01433483991 | F153: 0.008789797002 | G153: 0.000593591 | H153: 0.005093269805 | I153: 6.370386e-05 | J153: 5.522817944e-05 | K153: 0.02893042976 | M153: 0.01464816089 | N153: 0.008507522565 | O153: 0.0002511368214 | P153: 0.003192722745 | Q153: 4.516883421e-05 | R153: 6.753291143e-05 | S153: 0.02671224477
A154: 2004 | B154: 1 | C154: 7 | D154: 8 | E154: 0.01407733045 | F154: 0.01051572319 | G154: 0.0005441725708 | H154: 0.0079544832 | I154: 5.840030133e-05 | J154: 5.522817944e-05 | K154: 0.03320533789 | M154: 0.01438502296 | N154: 0.01017802258 | O154: 0.0002302288439 | P154: 0.004986278051 | Q154: 4.140837821e-05 | R154: 6.753291143e-05 | S154: 0.02988849373
A155: 2004 | B155: 1 | C155: 7 | D155: 9 | E155: 0.01331209586 | F155: 0.01160111755 | G155: 0 | H155: 0.00955242292 | I155: 0 | J155: 5.522817944e-05 | K155: 0.03452086451 | M155: 0.01360306241 | N155: 0.01122856072 | O155: 0 | P155: 0.005987948626 | Q155: 0 | R155: 6.753291143e-05 | S155: 0.03088710466
A156: 2004 | B156: 1 | C156: 7 | D156: 10 | E156: 0.01255359389 | F156: 0.01196384212 | G156: 0 | H156: 0.01056762012 | I156: 0 | J156: 5.522817944e-05 | K156: 0.03514028431 | M156: 0.01282798163 | N156: 0.0115796368 | O156: 0 | P156: 0.006624326297 | Q156: 0 | R156: 6.753291143e-05 | S156: 0.03109947764
A157: 2004 | B157: 1 | C157: 7 | D157: 11 | E157: 0.01197074112 | F157: 0.01214562976 | G157: 0 | H157: 0.01064855308 | I157: 0 | J157: 5.522817944e-05 | K157: 0.03482015214 | M157: 0.01223238927 | N157: 0.01175558653 | O157: 0 | P157: 0.006675059232 | Q157: 0 | R157: 6.753291143e-05 | S157: 0.03073056794
A158: 2004 | B158: 1 | C158: 7 | D158: 12 | E158: 0.01175480162 | F158: 0.01202495096 | G158: 0 | H158: 0.01041711945 | I158: 0 | J158: 5.522817944e-05 | K158: 0.03425210022 | M158: 0.01201172991 | N158: 0.0116387832 | O158: 0 | P158: 0.006529984763 | Q158: 0 | R158: 6.753291143e-05 | S158: 0.03024803078
A159: 2004 | B159: 1 | C159: 7 | D159: 13 | E159: 0.01127688285 | F159: 0.0117929935 | G159: 0 | H159: 0.01032368196 | I159: 0 | J159: 5.522817944e-05 | K159: 0.03344878649 | M159: 0.01152336513 | N159: 0.01141427479 | O159: 0 | P159: 0.006471413348 | Q159: 0 | R159: 6.753291143e-05 | S159: 0.02947658617
A160: 2004 | B160: 1 | C160: 7 | D160: 14 | E160: 0.01087613669 | F160: 0.0118740464 | G160: 0 | H160: 0.01008500473 | I160: 0 | J160: 5.522817944e-05 | K160: 0.032890416 | M160: 0.01111385973 | N160: 0.01149272477 | O160: 0 | P160: 0.006321798219 | Q160: 0 | R160: 6.753291143e-05 | S160: 0.02899591563
A161: 2004 | B161: 1 | C161: 7 | D161: 15 | E161: 0.01143362099 | F161: 0.01167535176 | G161: 0 | H161: 0.009199107226 | I161: 0 | J161: 5.522817944e-05 | K161: 0.03236330816 | M161: 0.01168352914 | N161: 0.01130041098 | O161: 0 | P161: 0.005766472227 | Q161: 0 | R161: 6.753291143e-05 | S161: 0.02881794526
A162: 2004 | B162: 1 | C162: 7 | D162: 16 | E162: 0.01237577163 | F162: 0.01123944943 | G162: 0 | H162: 0.008985447712 | I162: 0 | J162: 5.522817944e-05 | K162: 0.03265589695 | M162: 0.01264627266 | N162: 0.01087850716 | O162: 0 | P162: 0.005632539486 | Q162: 0 | R162: 6.753291143e-05 | S162: 0.02922485221
A163: 2004 | B163: 1 | C163: 7 | D163: 17 | E163: 0.01397450399 | F163: 0.01100203855 | G163: 0 | H163: 0.008994746088 | I163: 0 | J163: 5.522817944e-05 | K163: 0.0340265168 | M163: 0.01427994899 | N163: 0.01064872047 | O163: 0 | P163: 0.005638368184 | Q163: 0 | R163: 6.753291143e-05 | S163: 0.03063457055
A164: 2004 | B164: 1 | C164: 7 | D164: 18 | E164: 0.01620559515 | F164: 0.01073600294 | G164: 0.0005738046335 | H164: 0.008877201461 | I164: 6.158039802e-05 | J164: 5.522817944e-05 | K164: 0.03650941276 | M164: 0.01655980579 | N164: 0.01039122829 | O164: 0.0002427655941 | P164: 0.005564685183 | Q164: 4.366320642e-05 | R164: 6.753291143e-05 | S164: 0.03286968098
A165: 2004 | B165: 1 | C165: 7 | D165: 19 | E165: 0.01813724384 | F165: 0.01023539244 | G165: 0.000593591 | H165: 0.006985747818 | I165: 6.370386e-05 | J165: 5.522817944e-05 | K165: 0.03607090713 | M165: 0.01853367512 | N165: 0.009906694329 | O165: 0.0002511368214 | P165: 0.004379025028 | Q165: 4.516883421e-05 | R165: 6.753291143e-05 | S165: 0.03318323304
A166: 2004 | B166: 1 | C166: 7 | D166: 20 | E166: 0.01796914829 | F166: 0.01002095994 | G166: 0.000593591 | H166: 0.006908919003 | I166: 6.370386e-05 | J166: 5.522817944e-05 | K166: 0.03561155027 | M166: 0.01836190546 | N166: 0.009699148091 | O166: 0.0002511368214 | P166: 0.004330864786 | Q166: 4.516883421e-05 | R166: 6.753291143e-05 | S166: 0.0327557569
A167: 2004 | B167: 1 | C167: 7 | D167: 21 | E167: 0.01631591704 | F167: 0.009766486907 | G167: 0.000593591 | H167: 0.006931559627 | I167: 6.370386e-05 | J167: 5.522817944e-05 | K167: 0.03372648662 | M167: 0.01667253903 | N167: 0.009452847174 | O167: 0.0002511368214 | P167: 0.004345057091 | Q167: 4.516883421e-05 | R167: 6.753291143e-05 | S167: 0.03083428186
A168: 2004 | B168: 1 | C168: 7 | D168: 22 | E168: 0.01494406215 | F168: 0.009193103906 | G168: 0.000593591 | H168: 0.006771354841 | I168: 6.370386e-05 | J168: 5.522817944e-05 | K168: 0.03162104394 | M168: 0.01527069909 | N168: 0.008897877723 | O168: 0.0002511368214 | P168: 0.004244632514 | Q168: 4.516883421e-05 | R168: 6.753291143e-05 | S168: 0.02877704789
A169: 2004 | B169: 1 | C169: 7 | D169: 23 | E169: 0.0137613352 | F169: 0.008882326531 | G169: 0.000593591 | H169: 0.006635899022 | I169: 6.370386e-05 | J169: 5.522817944e-05 | K169: 0.02999208379 | M169: 0.01406212091 | N169: 0.008597080613 | O169: 0.0002511368214 | P169: 0.004159721859 | Q169: 4.516883421e-05 | R169: 6.753291143e-05 | S169: 0.02718276195
A170: 2004 | B170: 1 | C170: 7 | D170: 24 | E170: 0.01213914247 | F170: 0.0085019854 | G170: 0.000593591 | H170: 0.005756483784 | I170: 6.370386e-05 | J170: 5.522817944e-05 | K170: 0.02711013469 | M170: 0.01240447141 | N170: 0.008228953709 | O170: 0.0002511368214 | P170: 0.003608459283 | Q170: 4.516883421e-05 | R170: 6.753291143e-05 | S170: 0.02460572297
A171: 2004 | B171: 1 | C171: 8 | D171: 1 | E171: 0.011605222 | F171: 0.008290738308 | G171: 0.000593591 | H171: 0.005060313117 | I171: 6.370386e-05 | J171: 5.522817944e-05 | K171: 0.02566879646 | M171: 0.01185888088 | N171: 0.00802449058 | O171: 0.0002511368214 | P171: 0.003172063803 | Q171: 4.516883421e-05 | R171: 6.753291143e-05 | S171: 0.02341927383
A172: 2004 | B172: 1 | C172: 8 | D172: 2 | E172: 0.01178481989 | F172: 0.00787075939 | G172: 0.000593591 | H172: 0.004494035865 | I172: 6.370386e-05 | J172: 5.522817944e-05 | K172: 0.02486213819 | M172: 0.0120424043 | N172: 0.007617998812 | O172: 0.0002511368214 | P172: 0.002817092177 | Q172: 4.516883421e-05 | R172: 6.753291143e-05 | S172: 0.02284133386
A173: 2004 | B173: 1 | C173: 8 | D173: 3 | E173: 0.01170570138 | F173: 0.00778837847 | G173: 0.000593591 | H173: 0.00434111466 | I173: 6.370386e-05 | J173: 5.522817944e-05 | K173: 0.02454771755 | M173: 0.01196155647 | N173: 0.007538263463 | O173: 0.0002511368214 | P173: 0.002721233323 | Q173: 4.516883421e-05 | R173: 6.753291143e-05 | S173: 0.02258489182
A174: 2004 | B174: 1 | C174: 8 | D174: 4 | E174: 0.01246880921 | F174: 0.007527679452 | G174: 0.000593591 | H174: 0.003986757682 | I174: 6.370386e-05 | J174: 5.522817944e-05 | K174: 0.02469576938 | M174: 0.01274134378 | N174: 0.0072859365 | O174: 0.0002511368214 | P174: 0.002499104194 | Q174: 4.516883421e-05 | R174: 6.753291143e-05 | S174: 0.02289022305
A175: 2004 | B175: 1 | C175: 8 | D175: 5 | E175: 0.01310447956 | F175: 0.007527369449 | G175: 0.000593591 | H175: 0.003796318723 | I175: 6.370386e-05 | J175: 5.522817944e-05 | K175: 0.02514069078 | M175: 0.01339090818 | N175: 0.007285636452 | O175: 0.0002511368214 | P175: 0.002379727287 | Q175: 4.516883421e-05 | R175: 6.753291143e-05 | S175: 0.02342011048
A176: 2004 | B176: 1 | C176: 8 | D176: 6 | E176: 0.01380230439 | F176: 0.007926737534 | G176: 0.000593591 | H176: 0.003944600773 | I176: 6.370386e-05 | J176: 5.522817944e-05 | K176: 0.02638616574 | M176: 0.01410398558 | N176: 0.007672179281 | O176: 0.0002511368214 | P176: 0.002472678081 | Q176: 4.516883421e-05 | R176: 6.753291143e-05 | S176: 0.02461268151
A177: 2004 | B177: 1 | C177: 8 | D177: 7 | E177: 0.01554561076 | F177: 0.008801736405 | G177: 0.000593591 | H177: 0.004595657753 | I177: 6.370386e-05 | J177: 5.522817944e-05 | K177: 0.02965552796 | M177: 0.01588539593 | N177: 0.008519078548 | O177: 0.0002511368214 | P177: 0.002880793989 | Q177: 4.516883421e-05 | R177: 6.753291143e-05 | S177: 0.02764910703
A178: 2004 | B178: 1 | C178: 8 | D178: 8 | E178: 0.01509089571 | F178: 0.01056936935 | G178: 0.0005342793873 | H178: 0.007730469958 | I178: 5.733857031e-05 | J178: 5.522817944e-05 | K178: 0.03403758116 | M178: 0.01542074203 | N178: 0.01022994595 | O178: 0.0002260432302 | P178: 0.004845855062 | Q178: 4.065556429e-05 | R178: 6.753291143e-05 | S178: 0.03083077475
A179: 2004 | B179: 1 | C179: 8 | D179: 9 | E179: 0.01425500377 | F179: 0.01167658745 | G179: 0 | H179: 0.009399258988 | I179: 0 | J179: 5.522817944e-05 | K179: 0.03538607839 | M179: 0.01456657975 | N179: 0.01130160698 | O179: 0 | P179: 0.005891937617 | Q179: 0 | R179: 6.753291143e-05 | S179: 0.03182765726
A180: 2004 | B180: 1 | C180: 8 | D180: 10 | E180: 0.01341965197 | F180: 0.01205243659 | G180: 0 | H180: 0.01049370743 | I180: 0 | J180: 5.522817944e-05 | K180: 0.03602102417 | M180: 0.0137129694 | N180: 0.01166538615 | O180: 0 | P180: 0.006577994036 | Q180: 0 | R180: 6.753291143e-05 | S180: 0.0320238825
A181: 2004 | B181: 1 | C181: 8 | D181: 11 | E181: 0.01276217533 | F181: 0.01223696065 | G181: 0 | H181: 0.01063850489 | I181: 0 | J181: 5.522817944e-05 | K181: 0.03569286905 | M181: 0.0130411221 | N181: 0.01184398443 | O181: 0 | P181: 0.006668760508 | Q181: 0 | R181: 6.753291143e-05 | S181: 0.03162139995
A182: 2004 | B182: 1 | C182: 8 | D182: 12 | E182: 0.01251362585 | F182: 0.01211724254 | G182: 0 | H182: 0.01042448157 | I182: 0 | J182: 5.522817944e-05 | K182: 0.03511057815 | M182: 0.01278714 | N182: 0.01172811094 | O182: 0 | P182: 0.006534599718 | Q182: 0 | R182: 6.753291143e-05 | S182: 0.03111738357
A183: 2004 | B183: 1 | C183: 8 | D183: 13 | E183: 0.01197426137 | F183: 0.01188950873 | G183: 0 | H183: 0.01036813314 | I183: 0 | J183: 5.522817944e-05 | K183: 0.03428713142 | M183: 0.01223598646 | N183: 0.01150769054 | O183: 0 | P183: 0.006499277629 | Q183: 0 | R183: 6.753291143e-05 | S183: 0.03031048754
A184: 2004 | B184: 1 | C184: 8 | D184: 14 | E184: 0.01154061328 | F184: 0.01197407129 | G184: 0 | H184: 0.01014485354 | I184: 0 | J184: 5.522817944e-05 | K184: 0.03371476629 | M184: 0.01179285999 | N184: 0.01158953747 | O184: 0 | P184: 0.006359314524 | Q184: 0 | R184: 6.753291143e-05 | S184: 0.0298092449
A185: 2004 | B185: 1 | C185: 8 | D185: 15 | E185: 0.01216356788 | F185: 0.01176572539 | G185: 0 | H185: 0.009189925277 | I185: 0 | J185: 5.522817944e-05 | K185: 0.03317444673 | M185: 0.0124294307 | N185: 0.01138788236 | O185: 0 | P185: 0.005760716511 | Q185: 0 | R185: 6.753291143e-05 | S185: 0.02964556248
A186: 2004 | B186: 1 | C186: 8 | D186: 16 | E186: 0.01318139039 | F186: 0.01132040562 | G186: 0 | H186: 0.008917344239 | I186: 0 | J186: 5.522817944e-05 | K186: 0.03347436843 | M186: 0.01346950007 | N186: 0.01095686354 | O186: 0 | P186: 0.005589848735 | Q186: 0 | R186: 6.753291143e-05 | S186: 0.03008374525
A187: 2004 | B187: 1 | C187: 8 | D187: 17 | E187: 0.01492956253 | F187: 0.01106823316 | G187: 0 | H187: 0.008826317946 | I187: 0 | J187: 5.522817944e-05 | K187: 0.03487934181 | M187: 0.01525588254 | N187: 0.01071278931 | O187: 0 | P187: 0.005532788786 | Q187: 0 | R187: 6.753291143e-05 | S187: 0.03156899354
A188: 2004 | B188: 1 | C188: 8 | D188: 18 | E188: 0.01739937366 | F188: 0.01078264918 | G188: 0.0005540182665 | H188: 0.008573743024 | I188: 5.945693598e-05 | J188: 5.522817944e-05 | K188: 0.03742446924 | M188: 0.01777967709 | N188: 0.01043637654 | O188: 0.0002343943665 | P188: 0.005374461871 | Q188: 4.215757858e-05 | R188: 6.753291143e-05 | S188: 0.03393460035
A189: 2004 | B189: 1 | C189: 8 | D189: 19 | E189: 0.01953053992 | F189: 0.01025559473 | G189: 0.000593591 | H189: 0.006476312341 | I189: 6.370386e-05 | J189: 5.522817944e-05 | K189: 0.03697497003 | M189: 0.0199574249 | N189: 0.009926247852 | O189: 0.0002511368214 | P189: 0.004059684742 | Q189: 4.516883421e-05 | R189: 6.753291143e-05 | S189: 0.03430719606
A190: 2004 | B190: 1 | C190: 8 | D190: 20 | E190: 0.0192752056 | F190: 0.0100479167 | G190: 0.000593591 | H190: 0.006468454943 | I190: 6.370386e-05 | J190: 5.522817944e-05 | K190: 0.03650410029 | M190: 0.01969650966 | N190: 0.009725239167 | O190: 0.0002511368214 | P190: 0.004054759322 | Q190: 4.516883421e-05 | R190: 6.753291143e-05 | S190: 0.03384034672
A191: 2004 | B191: 1 | C191: 8 | D191: 21 | E191: 0.01745799518 | F191: 0.009806695446 | G191: 0.000593591 | H191: 0.006594576469 | I191: 6.370386e-05 | J191: 5.522817944e-05 | K191: 0.03457179013 | M191: 0.01783957992 | N191: 0.009491764461 | O191: 0.0002511368214 | P191: 0.004133818763 | Q191: 4.516883421e-05 | R191: 6.753291143e-05 | S191: 0.03182900171
A192: 2004 | B192: 1 | C192: 8 | D192: 22 | E192: 0.01597713866 | F192: 0.009237883756 | G192: 0.000593591 | H192: 0.006486035399 | I192: 6.370386e-05 | J192: 5.522817944e-05 | K192: 0.03241358085 | M192: 0.01632635586 | N192: 0.008941219518 | O192: 0.0002511368214 | P192: 0.004065779654 | Q192: 4.516883421e-05 | R192: 6.753291143e-05 | S192: 0.0296971936
A193: 2004 | B193: 1 | C193: 8 | D193: 23 | E193: 0.01472375023 | F193: 0.008922958316 | G193: 0.000593591 | H193: 0.006384559601 | I193: 6.370386e-05 | J193: 5.522817944e-05 | K193: 0.03074379118 | M193: 0.01504557173 | N193: 0.008636407554 | O193: 0.0002511368214 | P193: 0.004002169419 | Q193: 4.516883421e-05 | R193: 6.753291143e-05 | S193: 0.02804798727
A194: 2004 | B194: 1 | C194: 8 | D194: 24 | E194: 0.01303152236 | F194: 0.00854070894 | G194: 0.000593591 | H194: 0.005504856275 | I194: 6.370386e-05 | J194: 5.522817944e-05 | K194: 0.02778961061 | M194: 0.01331635632 | N194: 0.008266433686 | O194: 0.0002511368214 | P194: 0.003450726254 | Q194: 4.516883421e-05 | R194: 6.753291143e-05 | S194: 0.02539735483
A195: 2004 | B195: 1 | C195: 9 | D195: 1 | E195: 0.01161383274 | F195: 0.007755324966 | G195: 0.000593591 | H195: 0.003268039091 | I195: 6.370386e-05 | J195: 5.522817944e-05 | K195: 0.02334971984 | M195: 0.01186767983 | N195: =F195*W$5 -> 0.007506271434 | O195: =G195*X$5 -> 0.0002511368214 | P195: =H195*Y$5 -> 0.002048574518 | Q195: =I195*Z$5 -> 4.516883421e-05 | R195: 6.753291143e-05 | S195: 0.02178636435
A196: 2004 | B196: 1 | C196: 9 | D196: 2 | E196: 0.01155447393 | F196: 0.007370093159 | G196: 0.000593591 | H196: 0.00288885185 | I196: 6.370386e-05 | J196: 5.522817944e-05 | K196: 0.02252594197 | M196: =E196*V$5 -> 0.01180702359 | N196: 0.007133410914 | O196: 0.0002511368214 | P196: 0.001810880507 | Q196: 4.516883421e-05 | R196: 6.753291143e-05 | S196: =SUM(M196:R196) -> 0.02111515358
A197: 2004 | B197: 1 | C197: 9 | D197: 3 | E197: 0.01164796042 | F197: 0.007269273977 | G197: 0.000593591 | H197: 0.002554766395 | I197: 6.370386e-05 | J197: 5.522817944e-05 | K197: 0.02218452383 | M197: 0.01190255345 | N197: 0.007035829426 | O197: 0.0002511368214 | P197: 0.001601458609 | Q197: 4.516883421e-05 | R197: 6.753291143e-05 | S197: 0.02090368005
A198: 2004 | B198: 1 | C198: 9 | D198: 4 | E198: 0.01217702761 | F198: 0.007041911867 | G198: 0.000593591 | H198: 0.002424111553 | I198: 6.370386e-05 | J198: 5.522817944e-05 | K198: 0.02235557407 | M198: 0.01244318462 | N198: 0.006815768795 | O198: 0.0002511368214 | P198: 0.001519557453 | Q198: 4.516883421e-05 | R198: 6.753291143e-05 | S198: 0.02114234944
A199: 2004 | B199: 1 | C199: 9 | D199: 5 | E199: 0.01332130629 | F199: 0.006938597033 | G199: 0.000593591 | H199: 0.001850460796 | I199: 6.370386e-05 | J199: 5.522817944e-05 | K199: 0.02282288716 | M199: 0.01361247416 | N199: 0.0067157718 | O199: 0.0002511368214 | P199: 0.001159963736 | Q199: 4.516883421e-05 | R199: 6.753291143e-05 | S199: 0.02185204826
A200: 2004 | B200: 1 | C200: 9 | D200: 6 | E200: 0.01406930023 | F200: 0.007334623453 | G200: 0.000593591 | H200: 0.001779949436 | I200: 6.370386e-05 | J200: 5.522817944e-05 | K200: 0.02389639616 | M200: 0.01437681723 | N200: 0.007099080277 | O200: 0.0002511368214 | P200: 0.001115763599 | Q200: 4.516883421e-05 | R200: 6.753291143e-05 | S200: 0.02295549967
... 4297 more rows

Sheet 2006 Input to CA model
A2: Feed into OEB Cost Allocation Model (version 50) sheet "I6 Customer Data", row 27
D3: 1 | E3: 2 | F3: 3 | G3: 4 | H3: 5 | I3: 6 | J3: 7 | K3: 8 | L3: 9 | M3: 10 | N3: 11 | O3: 12 | P3: 13 | Q3: 14 | R3: 15 | S3: 16 | T3: 17 | U3: 18 | V3: 19 | W3: 20
B4: ID | C4: Total | D4: Residential | E4: GS<50 kW | F4: GS>50 kW | G4: USL | H4: Street Lighting
A6: kWh - 30 year weather normalized amount | C6: 27966291.06 | D6: 16265358.77 | E6: 5773900.296 | F6: 5561381.915 | G6: 19949.16 | H6: 345700.9213 | I6: 0 | J6: 0 | K6: 0 | L6: 0 | M6: 0 | N6: 0
A9: Feed into OEB Cost Allocation Model sheet (version 50) "I8 Demand Data", row 40, 45, 50, 55, 61 and 67
D10: 1 | E10: 2 | F10: 3 | G10: 4 | H10: 5 | I10: 6 | J10: 7 | K10: 8 | L10: 9 | M10: 10 | N10: 11 | O10: 12 | P10: 13 | Q10: 14 | R10: 15 | S10: 16 | T10: 17 | U10: 18 | V10: 19 | W10: 20
A11: Customer Classes | C11: Total | D11: Residential | E11: GS<50 kW | F11: GS>50 kW | G11: USL | H11: Street Lighting
A13: CO-INCIDENT PEAK (kW)
A15: 1 CP
A16: Total Sytem CP | B16: DCP1 | C16: 7224.297522 | D16: 4448.227175 | E16: 1499.572445 | F16: 1274.263452 | G16: 2.234448925 | H16: 0
A18: 4 CP
A19: Total Sytem CP | B19: DCP4 | C19: 26095.56893 | D19: 16880.40852 | E19: 4611.150973 | F19: 4354.400902 | G19: 9.091895625 | H19: 240.516639
A21: 12 CP
A22: Total Sytem CP | B22: DCP12 | C22: 56529.40513 | D22: 35867.82869 | E22: 10094.80697 | F22: 9986.315776 | G22: 27.26541355 | H22: 553.1882697
A24: NON CO_INCIDENT PEAK (kW)
A26: 1 NCP
A27: Classification NCP from Load Data Provider | B27: DNCP1 | C27: 7865.357433 | D27: 4990.781333 | E27: 1499.572445 | F27: 1292.442892 | G27: 2.388548851 | H27: 80.172213
A29: 4 NCP
A30: Classification NCP from Load Data Provider | B30: DNCP4 | C30: 29224.20428 | D30: 18393.63223 | E30: 5475.393619 | F30: 5025.174244 | G30: 9.315340517 | H30: 320.688852
A32: 12 NCP
A33: Classification NCP from Load Data Provider | B33: DNCP12 | C33: 62410.49966 | D33: 38266.70454 | E33: 11613.6354 | F33: 11540.82775 | G33: 27.26541355 | H33: 962.066556

Sheet Revised Inputs to CA model
A2: Feed into OEB Cost Allocation Model (version 50) sheet "I6 Customer Data", row 27
B4: ID | C4: Total | D4: ='Hourly load shapes by class'!E2 -> Residential | E4: ='Hourly load shapes by class'!F2 -> GS>50kW | F4: ='Hourly load shapes by class'!G2 -> Street Lighting | G4: ='Hourly load shapes by class'!H2 -> GS<50 | H4: ='Hourly load shapes by class'!I2 -> Sentinel Lighting | I4: ='Hourly load shapes by class'!J2 -> USL
A6: kWh - 30 year weather normalized amount | C6: =SUM(D6:I6) -> 182227537.9 | D6: ='Hourly load shapes by class'!V4 -> 80356208.53 | E6: ='Hourly load shapes by class'!W4 -> 70993965.91 | F6: 430600.273 | G6: ='Hourly load shapes by class'!Y4 -> 29645117.35 | H6: ='Hourly load shapes by class'!Z4 -> 194767.0772 | I6: ='Hourly load shapes by class'!AA4 -> 606878.7233
A9: Feed into OEB Cost Allocation Model sheet (version 50) "I8 Demand Data", row 40, 45, 50, 55, 61 and 67 | K9: 2015 Demand Data
A11: Customer Classes | C11: Total | D11: ='Hourly load shapes by class'!E2 -> Residential | E11: ='Hourly load shapes by class'!F2 -> GS>50kW | F11: ='Hourly load shapes by class'!G2 -> Street Lighting | G11: ='Hourly load shapes by class'!H2 -> GS<50 | H11: ='Hourly load shapes by class'!I2 -> Sentinel Lighting | I11: ='Hourly load shapes by class'!J2 -> USL | K11: =D11 -> Residential | L11: =E11 -> GS>50kW | M11: Street Lighting | N11: GS<50 | O11: Sentinel Lighting | P11: USL
A13: CO-INCIDENT PEAK (kW)
A15: 1 CP
A16: Total Sytem CP | B16: DCP1 | C16: =SUM(D16:I16) -> 40597.68282 | D16: ='Hourly load shapes by class'!E8805*1000000 -> 15650.91352 | E16: ='Hourly load shapes by class'!F8805*1000000 -> 12545.71945 | F16: ='Hourly load shapes by class'!G8805*1000000 -> 0 | G16: ='Hourly load shapes by class'!H8805*1000000 -> 12345.82167 | H16: ='Hourly load shapes by class'!I8805*1000000 -> 0 | I16: ='Hourly load shapes by class'!J8805*1000000 -> 55.22817944 | K16: ='Hourly load shapes by class'!M8818*1000000 -> 21098.69762 | L16: ='Hourly load shapes by class'!N8801*1000000 -> 12818.78481 | M16: ='Hourly load shapes by class'!O8801*1000000 -> 251.1368214 | N16: ='Hourly load shapes by class'!P8801*1000000 -> 8079.026022 | O16: ='Hourly load shapes by class'!Q8801*1000000 -> 45.17842904 | P16: ='Hourly load shapes by class'!R8801*1000000 -> 72.1903536
A18: 4 CP
A19: Total Sytem CP | B19: DCP4 | C19: =SUM(D19:I19) -> 153016.7156 | D19: =SUM('Hourly load shapes by class'!E8818:E8821)*1000000 -> 60043.0239 | E19: =SUM('Hourly load shapes by class'!F8818:F8821)*1000000 -> 46198.87937 | F19: =SUM('Hourly load shapes by class'!G8818:G8821)*1000000 -> 1411.72614 | G19: =SUM('Hourly load shapes by class'!H8818:H8821)*1000000 -> 44984.69621 | H19: =SUM('Hourly load shapes by class'!I8818:I8821)*1000000 -> 151.827533 | I19: =SUM('Hourly load shapes by class'!J8818:J8821)*1000000 -> 226.562497 | K19: ='Hourly load shapes by class'!M8802*1000000 -> 56326.4684 | L19: ='Hourly load shapes by class'!N8802*1000000 -> 46098.07446 | M19: ='Hourly load shapes by class'!O8802*1000000 -> 1002.36639 | N19: ='Hourly load shapes by class'!P8802*1000000 -> 24033.05041 | O19: ='Hourly load shapes by class'!Q8802*1000000 -> 180.6753368 | P19: ='Hourly load shapes by class'!R8802*1000000 -> 280.0504887
A21: 12 CP
A22: Total Sytem CP | B22: DCP12 | C22: =SUM(D22:I22) -> 396919.3211 | D22: =SUM('Hourly load shapes by class'!E8805:E8816)*1000000 -> 140677.8064 | E22: =SUM('Hourly load shapes by class'!F8805:F8816)*1000000 -> 135279.0469 | F22: =SUM('Hourly load shapes by class'!G8805:G8816)*1000000 -> 2250.141035 | G22: =SUM('Hourly load shapes by class'!H8805:H8816)*1000000 -> 117791.8627 | H22: =SUM('Hourly load shapes by class'!I8805:I8816)*1000000 -> 242.074668 | I22: =SUM('Hourly load shapes by class'!J8805:J8816)*1000000 -> 678.3893667 | K22: ='Hourly load shapes by class'!M8803*1000000 -> 181026.2191 | L22: ='Hourly load shapes by class'!N8803*1000000 -> 140953.5344 | M22: ='Hourly load shapes by class'!O8803*1000000 -> 3007.73786 | N22: ='Hourly load shapes by class'!P8803*1000000 -> 78345.00775 | O22: ='Hourly load shapes by class'!Q8803*1000000 -> 542.0356053 | P22: ='Hourly load shapes by class'!R8803*1000000 -> 829.5332108
A24: NON CO_INCIDENT PEAK (kW)
A26: 1 NCP
A27: Classification NCP from Load Data Provider | B27: DNCP1 | C27: =SUM(D27:I27) -> 47024.31818 | D27: ='Hourly load shapes by class'!E8788*1000000 -> 20647.40107 | E27: ='Hourly load shapes by class'!F8788*1000000 -> 12776.1283 | F27: ='Hourly load shapes by class'!G8788*1000000 -> 593.591 | G27: ='Hourly load shapes by class'!H8788*1000000 -> 12888.26578 | H27: ='Hourly load shapes by class'!I8788*1000000 -> 63.70386 | I27: ='Hourly load shapes by class'!J8788*1000000 -> 55.22817944 | K27: ='Hourly load shapes by class'!M8818*1000000 -> 21098.69762 | L27: ='Hourly load shapes by class'!N8818*1000000 -> 12757.66175 | M27: ='Hourly load shapes by class'!O8818*1000000 -> 251.1368214 | N27: ='Hourly load shapes by class'!P8818*1000000 -> 7171.816104 | O27: ='Hourly load shapes by class'!Q8818*1000000 -> 45.16883421 | P27: ='Hourly load shapes by class'!R8818*1000000 -> 72.1903536
A29: 4 NCP
A30: Classification NCP from Load Data Provider | B30: DNCP4 | C30: =SUM(D30:I30) -> 181284.6973 | D30: =(LARGE('Hourly load shapes by class'!E8788:E8799,1)+LARGE('Hourly load shapes by class'!E8788:E8799,2)+LARGE('Hourly load shapes by class'!E8788:E8799,3)+LARGE('Hourly load shapes by class'!E8788:E8799,4))*1000000 -> 77347.81013 | E30: =(LARGE('Hourly load shapes by class'!F8788:F8799,1)+LARGE('Hourly load shapes by class'!F8788:F8799,2)+LARGE('Hourly load shapes by class'!F8788:F8799,3)+LARGE('Hourly load shapes by class'!F8788:F8799,4))*1000000 -> 51641.64022 | F30: =(LARGE('Hourly load shapes by class'!G8788:G8799,1)+LARGE('Hourly load shapes by class'!G8788:G8799,2)+LARGE('Hourly load shapes by class'!G8788:G8799,3)+LARGE('Hourly load shapes by class'!G8788:G8799,4))*1000000 -> 2371.66036 | G30: =(LARGE('Hourly load shapes by class'!H8788:H8799,1)+LARGE('Hourly load shapes by class'!H8788:H8799,2)+LARGE('Hourly load shapes by class'!H8788:H8799,3)+LARGE('Hourly load shapes by class'!H8788:H8799,4))*1000000 -> 49434.09769 | H30: =(LARGE('Hourly load shapes by class'!I8788:I8799,1)+LARGE('Hourly load shapes by class'!I8788:I8799,2)+LARGE('Hourly load shapes by class'!I8788:I8799,3)+LARGE('Hourly load shapes by class'!I8788:I8799,4))*1000000 -> 254.8289721 | I30: =(LARGE('Hourly load shapes by class'!J8788:J8799,1)+LARGE('Hourly load shapes by class'!J8788:J8799,2)+LARGE('Hourly load shapes by class'!J8788:J8799,3)+LARGE('Hourly load shapes by class'!J8788:J8799,4))*1000000 -> 234.6599224 | K30: =SUM('Hourly load shapes by class'!M8818:M8821)*1000000 -> 76590.55091 | L30: =SUM('Hourly load shapes by class'!N8818:N8821)*1000000 -> 45856.85244 | M30: =SUM('Hourly load shapes by class'!O8818:O8821)*1000000 -> 1003.045138 | N30: =SUM('Hourly load shapes by class'!P8818:P8821)*1000000 -> 25578.80282 | O30: =SUM('Hourly load shapes by class'!Q8818:Q8821)*1000000 -> 180.6753368 | P30: =SUM('Hourly load shapes by class'!R8818:R8821)*1000000 -> 286.9417012
A32: 12 NCP
A33: Classification NCP from Load Data Provider | B33: DNCP12 | C33: =SUM(D33:I33) -> 456318.1896 | D33: =SUM('Hourly load shapes by class'!E8788:E8799)*1000000 -> 177154.1076 | E33: =SUM('Hourly load shapes by class'!F8788:F8799)*1000000 -> 145630.2871 | F33: =SUM('Hourly load shapes by class'!G8788:G8799)*1000000 -> 7109.13722 | G33: =SUM('Hourly load shapes by class'!H8788:H8799)*1000000 -> 124981.8084 | H33: =SUM('Hourly load shapes by class'!I8788:I8799)*1000000 -> 764.4598521 | I33: =SUM('Hourly load shapes by class'!J8788:J8799)*1000000 -> 678.3893667 | K33: =SUM('Hourly load shapes by class'!M8805:M8816)*1000000 -> 159905.0231 | L33: =SUM('Hourly load shapes by class'!N8805:N8816)*1000000 -> 126601.1496 | M33: =SUM('Hourly load shapes by class'!O8805:O8816)*1000000 -> 1357.762193 | N33: =SUM('Hourly load shapes by class'!P8805:P8816)*1000000 -> 63737.3336 | O33: =SUM('Hourly load shapes by class'!Q8805:Q8816)*1000000 -> 244.6645186 | P33: =SUM('Hourly load shapes by class'!R8805:R8816)*1000000 -> 829.5332108
